Department family,Entity,Date,Expense Type,Expense area,Supplier,Transaction number, AP Amount (�) 
Department of Health,NHS Sheffield CCG,30/11/2019,Clinical&Medical-Commercial Sector,PATIENT TRANSPORT,PREMIER CARE DIRECT LTD,29620089," 112,480.55 "
Department of Health,NHS Sheffield CCG,30/11/2019,Clinical&Medical-Voluntary Sector,COLLABORATIVE COMMISSIONING,SOUTH YORKSHIRE HOUSING ASSOCIATION LTD,29620139," 139,149.72 "
Department of Health,NHS Sheffield CCG,30/11/2019,Miscellaneous Expenditure (L9),BEREAVEMENT SERVICE,DONCASTER AND BASSETLAW HOSPITALS NHS FOUNDATION TRUST,29620153, 2.10 
Department of Health,NHS Sheffield CCG,30/11/2019,Oth Travel Costs-Car Mileage,BEREAVEMENT SERVICE,DONCASTER AND BASSETLAW HOSPITALS NHS FOUNDATION TRUST,29620153, 123.25 
Department of Health,NHS Sheffield CCG,30/11/2019,Other Travel Costs - Car Parking,BEREAVEMENT SERVICE,DONCASTER AND BASSETLAW HOSPITALS NHS FOUNDATION TRUST,29620153,-19.30 
Department of Health,NHS Sheffield CCG,30/11/2019,Seconded-Basic Sal-Staff fm oth org,BEREAVEMENT SERVICE,DONCASTER AND BASSETLAW HOSPITALS NHS FOUNDATION TRUST,29620153," 24,559.91 "
Department of Health,NHS Sheffield CCG,30/11/2019,Seconded-Employer's NHI Costs,BEREAVEMENT SERVICE,DONCASTER AND BASSETLAW HOSPITALS NHS FOUNDATION TRUST,29620153," 3,082.07 "
Department of Health,NHS Sheffield CCG,30/11/2019,Seconded-Employer's Pension Costs,BEREAVEMENT SERVICE,DONCASTER AND BASSETLAW HOSPITALS NHS FOUNDATION TRUST,29620153," 2,520.68 "
Department of Health,NHS Sheffield CCG,30/11/2019,C&M-PMS LES Presc Incentive Sch,LOCAL ENHANCED SERVICES,BURNCROSS SURGERY,29620155," 47,458.00 "
Department of Health,NHS Sheffield CCG,30/11/2019,Cont Care-NHSFT-Adult 100% Funded,CHC ADULT FULLY FUNDED,SHEFFIELD HEALTH & SOCIAL CARE NHS FOUNDATION TRUST,29620215," 480,943.40 "
Department of Health,NHS Sheffield CCG,30/11/2019,C&M-GMS IT Comm Servs -GP Practices,PRIMARY CARE IT,KIER BUSINESS SERVICES LTD,29620256," 100,142.40 "
Department of Health,NHS Sheffield CCG,30/11/2019,FM Computer Contracts,BUSINESS INFORMATICS,KIER BUSINESS SERVICES LTD,29620256," 36,193.20 "
Department of Health,NHS Sheffield CCG,30/11/2019,Voids and Subsidies,PRC DELEGATED CO-COMMISSIONING,COMMUNITY HEALTH PARTNERSHIPS LTD,29620263," 37,050.51 "
Department of Health,NHS Sheffield CCG,30/11/2019,Voids and Subsidies,RECHARGES NHS PROPERTY SERVICES LTD,COMMUNITY HEALTH PARTNERSHIPS LTD,29620263," 117,396.67 "
Department of Health,NHS Sheffield CCG,30/11/2019,Hcare Srv Rec NHS Trust-Contract Baseline,ACUTE COMMISSIONING,LEEDS TEACHING HOSPITALS NHS TRUST,29660968," 57,500.00 "
Department of Health,NHS Sheffield CCG,30/11/2019,Hcare Srv Rec Fdtn Trust-Contract Baseline,ACUTE COMMISSIONING,ROTHERHAM NHS FOUNDATION TRUST,29670065," 466,729.00 "
Department of Health,NHS Sheffield CCG,30/11/2019,Hcare Srv Rec NHS Trust-Contract Baseline,AMBULANCE SERVICES,YORKSHIRE AMBULANCE SERVICE NHS TRUST,29670181," 127,348.75 "
Department of Health,NHS Sheffield CCG,30/11/2019,Hcare Srv Rec NHS Trust-Contract Baseline,NHS 111,YORKSHIRE AMBULANCE SERVICE NHS TRUST,29670184," 133,605.27 "
Department of Health,NHS Sheffield CCG,30/11/2019,Hcare Srv Rec NHS Trust-Contract Baseline,PATIENT TRANSPORT,YORKSHIRE AMBULANCE SERVICE NHS TRUST,29670186," 267,243.94 "
Department of Health,NHS Sheffield CCG,30/11/2019,Hcare Srv Rec NHS Trust-Contract Baseline,AMBULANCE SERVICES,YORKSHIRE AMBULANCE SERVICE NHS TRUST,29670189," 1,674,240.00 "
Department of Health,NHS Sheffield CCG,30/11/2019,Hcare Srv Rec Fdtn Trust-Contract Baseline,ACUTE COMMISSIONING,BARNSLEY HOSPITAL NHS FOUNDATION TRUST,29670191," 86,710.00 "
Department of Health,NHS Sheffield CCG,30/11/2019,Hcare Srv Rec NHS Trust-Contract Baseline,ACUTE COMMISSIONING,UNITED LINCOLNSHIRE HOSPITALS NHS TRUST,29681248," 26,180.60 "
Department of Health,NHS Sheffield CCG,30/11/2019,Programme Support Costs,COUNSELLING SERVICES,SHEFFIELD CITY COUNCIL,29700472," 26,750.00 "
Department of Health,NHS Sheffield CCG,30/11/2019,Cont Care- Adult 100% Fully Funded,CHC ADULT FULLY FUNDED,SOUTH YORKSHIRE HOUSING ASSOCIATION LTD,29700480," 46,763.59 "
Department of Health,NHS Sheffield CCG,30/11/2019,Clinical&Medical-Othe Public Sector,COMMUNITY SERVICES,SHEFFIELD CITY COUNCIL,29700498," 150,417.00 "
Department of Health,NHS Sheffield CCG,30/11/2019,Clinical&Medical-Othe Public Sector,MENTAL HEALTH SERVICES - COLLABORATIVE COMMISSIONING,SHEFFIELD CITY COUNCIL,29700498," 83,669.00 "
Department of Health,NHS Sheffield CCG,30/11/2019,Clinical&Medical-Othe Public Sector,REABLEMENT,SHEFFIELD CITY COUNCIL,29700498," 21,831.00 "
Department of Health,NHS Sheffield CCG,30/11/2019,Clinical&Medical-Othe Public Sector,SAFEGUARDING,SHEFFIELD CITY COUNCIL,29700498," 12,235.00 "
Department of Health,NHS Sheffield CCG,30/11/2019,Cont Care-Physical Disab (65+),CHC ADULT FULLY FUNDED,SHEFFIELD CITY COUNCIL,29700498," 98,976.42 "
Department of Health,NHS Sheffield CCG,30/11/2019,Soc Care-Joint H&C Teams/Working,INTERMEDIATE CARE,SHEFFIELD CITY COUNCIL,29700498," 151,448.00 "
Department of Health,NHS Sheffield CCG,30/11/2019,Soc Care-Other Soc Care,COMMISSIONING - NON ACUTE,SHEFFIELD CITY COUNCIL,29700498," 1,467,750.00 "
Department of Health,NHS Sheffield CCG,30/11/2019,Soc Care-Support Prim Care,COMMUNITY SERVICES,SHEFFIELD CITY COUNCIL,29700498," 59,500.00 "
Department of Health,NHS Sheffield CCG,30/11/2019,C&M-PMS Contract Value,PRC DELEGATED CO-COMMISSIONING,ABBEY LANE SURGERY,29744433," 24,141.33 "
Department of Health,NHS Sheffield CCG,30/11/2019,C&M-PMS DES Minor Surgery,PRC DELEGATED CO-COMMISSIONING,ABBEY LANE SURGERY,29744433, 200.00 
Department of Health,NHS Sheffield CCG,30/11/2019,C&M-PMS Out of Hours Opt Outs,PRC DELEGATED CO-COMMISSIONING,ABBEY LANE SURGERY,29744433, 23.10 
Department of Health,NHS Sheffield CCG,30/11/2019,C&M-PMS PCN DES Participation,PRC DELEGATED CO-COMMISSIONING,ABBEY LANE SURGERY,29744433, 452.23 
Department of Health,NHS Sheffield CCG,30/11/2019,C&M-PMS PCO Locum Adop/Pat/Mat,PRC DELEGATED CO-COMMISSIONING,ABBEY LANE SURGERY,29744433," 1,820.46 "
Department of Health,NHS Sheffield CCG,30/11/2019,C&M-PMS PCO Other,PRC DELEGATED CO-COMMISSIONING,ABBEY LANE SURGERY,29744433," 3,802.40 "
Department of Health,NHS Sheffield CCG,30/11/2019,C&M-PMS Prem Notional Rent,PRC DELEGATED CO-COMMISSIONING,ABBEY LANE SURGERY,29744433," 2,122.92 "
Department of Health,NHS Sheffield CCG,30/11/2019,C&M-PMS Prem Rates,PRC DELEGATED CO-COMMISSIONING,ABBEY LANE SURGERY,29744433," 5,327.50 "
Department of Health,NHS Sheffield CCG,30/11/2019,C&M-PMS QOF Aspiration,PRC DELEGATED CO-COMMISSIONING,ABBEY LANE SURGERY,29744433," 2,636.98 "
Department of Health,NHS Sheffield CCG,30/11/2019,C&M-PMS Contract Value,PRC DELEGATED CO-COMMISSIONING,BARNSLEY ROAD SURGERY,29744435," 21,707.99 "
Department of Health,NHS Sheffield CCG,30/11/2019,C&M-PMS PCN DES Participation,PRC DELEGATED CO-COMMISSIONING,BARNSLEY ROAD SURGERY,29744435, 410.63 
Department of Health,NHS Sheffield CCG,30/11/2019,C&M-PMS Prem Notional Rent,PRC DELEGATED CO-COMMISSIONING,BARNSLEY ROAD SURGERY,29744435," 2,652.17 "
Department of Health,NHS Sheffield CCG,30/11/2019,C&M-PMS Prem Rates,PRC DELEGATED CO-COMMISSIONING,BARNSLEY ROAD SURGERY,29744435," 6,628.50 "
Department of Health,NHS Sheffield CCG,30/11/2019,C&M-PMS QOF Aspiration,PRC DELEGATED CO-COMMISSIONING,BARNSLEY ROAD SURGERY,29744435," 2,377.21 "
Department of Health,NHS Sheffield CCG,30/11/2019,C&M-PMS Contract Value,PRC DELEGATED CO-COMMISSIONING,BIRLEY HEALTH CENTRE,29744437," 64,860.70 "
Department of Health,NHS Sheffield CCG,30/11/2019,C&M-PMS DES Minor Surgery,PRC DELEGATED CO-COMMISSIONING,BIRLEY HEALTH CENTRE,29744437," 3,645.00 "
Department of Health,NHS Sheffield CCG,30/11/2019,C&M-PMS PCN DES Participation,PRC DELEGATED CO-COMMISSIONING,BIRLEY HEALTH CENTRE,29744437," 1,209.32 "
Department of Health,NHS Sheffield CCG,30/11/2019,C&M-PMS PCO Other,PRC DELEGATED CO-COMMISSIONING,BIRLEY HEALTH CENTRE,29744437, 535.90 
Department of Health,NHS Sheffield CCG,30/11/2019,C&M-PMS Prem Notional Rent,PRC DELEGATED CO-COMMISSIONING,BIRLEY HEALTH CENTRE,29744437," 7,600.58 "
Department of Health,NHS Sheffield CCG,30/11/2019,C&M-PMS Prem Rates,PRC DELEGATED CO-COMMISSIONING,BIRLEY HEALTH CENTRE,29744437," 1,407.00 "
Department of Health,NHS Sheffield CCG,30/11/2019,C&M-PMS QOF Aspiration,PRC DELEGATED CO-COMMISSIONING,BIRLEY HEALTH CENTRE,29744437," 7,981.39 "
Department of Health,NHS Sheffield CCG,30/11/2019,C&M-PMS Contract Value,PRC DELEGATED CO-COMMISSIONING,BURNCROSS SURGERY,29744438,-400.89 
Department of Health,NHS Sheffield CCG,30/11/2019,C&M-PMS GP Statutory Levy,PRC DELEGATED CO-COMMISSIONING,BURNCROSS SURGERY,29744438,-529.62 
Department of Health,NHS Sheffield CCG,30/11/2019,C&M-PMS Contract Value,PRC DELEGATED CO-COMMISSIONING,BURNCROSS SURGERY,29744439," 121,469.76 "
Department of Health,NHS Sheffield CCG,30/11/2019,C&M-PMS DES Minor Surgery,PRC DELEGATED CO-COMMISSIONING,BURNCROSS SURGERY,29744439," 2,505.00 "
Department of Health,NHS Sheffield CCG,30/11/2019,C&M-PMS PCN DES Participation,PRC DELEGATED CO-COMMISSIONING,BURNCROSS SURGERY,29744439," 2,292.15 "
Department of Health,NHS Sheffield CCG,30/11/2019,C&M-PMS Prem Notional Rent,PRC DELEGATED CO-COMMISSIONING,BURNCROSS SURGERY,29744439," 14,058.33 "
Department of Health,NHS Sheffield CCG,30/11/2019,C&M-PMS QOF Aspiration,PRC DELEGATED CO-COMMISSIONING,BURNCROSS SURGERY,29744439," 15,732.40 "
Department of Health,NHS Sheffield CCG,30/11/2019,C&M-APMS Contract Value,PRC DELEGATED CO-COMMISSIONING,CLOVER GROUP PRACTICE,29744442," 129,141.81 "
Department of Health,NHS Sheffield CCG,30/11/2019,C&M-APMS DES Minor Surgery,PRC DELEGATED CO-COMMISSIONING,CLOVER GROUP PRACTICE,29744442, 120.00 
Department of Health,NHS Sheffield CCG,30/11/2019,C&M-APMS PCN DES Participation,PRC DELEGATED CO-COMMISSIONING,CLOVER GROUP PRACTICE,29744442," 2,421.56 "
Department of Health,NHS Sheffield CCG,30/11/2019,C&M-APMS Prem Actual Rent,PRC DELEGATED CO-COMMISSIONING,CLOVER GROUP PRACTICE,29744442," 7,973.85 "
Department of Health,NHS Sheffield CCG,30/11/2019,C&M-APMS Prem Healthcentre Rent,PRC DELEGATED CO-COMMISSIONING,CLOVER GROUP PRACTICE,29744442," 59,658.86 "
Department of Health,NHS Sheffield CCG,30/11/2019,C&M-APMS Prem Notional Rent,PRC DELEGATED CO-COMMISSIONING,CLOVER GROUP PRACTICE,29744442," 2,804.17 "
Department of Health,NHS Sheffield CCG,30/11/2019,C&M-PMS QOF Aspiration,PRC DELEGATED CO-COMMISSIONING,CLOVER GROUP PRACTICE,29744442," 11,480.20 "
Department of Health,NHS Sheffield CCG,30/11/2019,C&M-PMS Contract Value,PRC DELEGATED CO-COMMISSIONING,DEEPCAR MEDICAL CENTRE,29744444," 42,647.98 "
Department of Health,NHS Sheffield CCG,30/11/2019,C&M-PMS Out of Hours Opt Outs,PRC DELEGATED CO-COMMISSIONING,DEEPCAR MEDICAL CENTRE,29744444, 12.61 
Department of Health,NHS Sheffield CCG,30/11/2019,C&M-PMS PCN DES Participation,PRC DELEGATED CO-COMMISSIONING,DEEPCAR MEDICAL CENTRE,29744444, 789.85 
Department of Health,NHS Sheffield CCG,30/11/2019,C&M-PMS Prem Healthcentre Rent,PRC DELEGATED CO-COMMISSIONING,DEEPCAR MEDICAL CENTRE,29744444," 29,915.44 "
Department of Health,NHS Sheffield CCG,30/11/2019,C&M-PMS QOF Aspiration,PRC DELEGATED CO-COMMISSIONING,DEEPCAR MEDICAL CENTRE,29744444," 4,298.67 "
Department of Health,NHS Sheffield CCG,30/11/2019,C&M-PMS Contract Value,PRC DELEGATED CO-COMMISSIONING,DOVERCOURT SURGERY,29744445,-178.06 
Department of Health,NHS Sheffield CCG,30/11/2019,C&M-PMS GP Statutory Levy,PRC DELEGATED CO-COMMISSIONING,DOVERCOURT SURGERY,29744445,-300.76 
Department of Health,NHS Sheffield CCG,30/11/2019,C&M-PMS Out of Hours Opt Outs,PRC DELEGATED CO-COMMISSIONING,DOVERCOURT SURGERY,29744445,"-3,509.85 "
Department of Health,NHS Sheffield CCG,30/11/2019,C&M-PMS Contract Value,PRC DELEGATED CO-COMMISSIONING,DOVERCOURT SURGERY,29744446," 74,794.66 "
Department of Health,NHS Sheffield CCG,30/11/2019,C&M-PMS DES Minor Surgery,PRC DELEGATED CO-COMMISSIONING,DOVERCOURT SURGERY,29744446," 2,160.00 "
Department of Health,NHS Sheffield CCG,30/11/2019,C&M-PMS Out of Hours Opt Outs,PRC DELEGATED CO-COMMISSIONING,DOVERCOURT SURGERY,29744446, 8.40 
Department of Health,NHS Sheffield CCG,30/11/2019,C&M-PMS PCN DES Participation,PRC DELEGATED CO-COMMISSIONING,DOVERCOURT SURGERY,29744446," 1,392.36 "
Department of Health,NHS Sheffield CCG,30/11/2019,C&M-PMS PCO Other,PRC DELEGATED CO-COMMISSIONING,DOVERCOURT SURGERY,29744446, 536.10 
Department of Health,NHS Sheffield CCG,30/11/2019,C&M-PMS Prem Actual Rent,PRC DELEGATED CO-COMMISSIONING,DOVERCOURT SURGERY,29744446," 12,400.00 "
Department of Health,NHS Sheffield CCG,30/11/2019,C&M-PMS Prem Notional Rent,PRC DELEGATED CO-COMMISSIONING,DOVERCOURT SURGERY,29744446," 1,708.33 "
Department of Health,NHS Sheffield CCG,30/11/2019,C&M-PMS QOF Aspiration,PRC DELEGATED CO-COMMISSIONING,DOVERCOURT SURGERY,29744446," 7,675.00 "
Department of Health,NHS Sheffield CCG,30/11/2019,C&M-PMS Contract Value,PRC DELEGATED CO-COMMISSIONING,DR MEHROTRA & PARTNER,29744448," 26,742.96 "
Department of Health,NHS Sheffield CCG,30/11/2019,C&M-PMS PCN DES Participation,PRC DELEGATED CO-COMMISSIONING,DR MEHROTRA & PARTNER,29744448, 501.42 
Department of Health,NHS Sheffield CCG,30/11/2019,C&M-PMS PCO Other,PRC DELEGATED CO-COMMISSIONING,DR MEHROTRA & PARTNER,29744448, 237.80 
Department of Health,NHS Sheffield CCG,30/11/2019,C&M-PMS Prem Actual Rent,PRC DELEGATED CO-COMMISSIONING,DR MEHROTRA & PARTNER,29744448," 2,650.00 "
Department of Health,NHS Sheffield CCG,30/11/2019,C&M-PMS Prem Notional Rent,PRC DELEGATED CO-COMMISSIONING,DR MEHROTRA & PARTNER,29744448," 5,157.29 "
Department of Health,NHS Sheffield CCG,30/11/2019,C&M-PMS Prem Rates,PRC DELEGATED CO-COMMISSIONING,DR MEHROTRA & PARTNER,29744448," 1,606.00 "
Department of Health,NHS Sheffield CCG,30/11/2019,C&M-PMS QOF Aspiration,PRC DELEGATED CO-COMMISSIONING,DR MEHROTRA & PARTNER,29744448," 2,763.65 "
Department of Health,NHS Sheffield CCG,30/11/2019,C&M-PMS Contract Value,PRC DELEGATED CO-COMMISSIONING,DR MILNER & PARTNERS,29744450," 77,276.15 "
Department of Health,NHS Sheffield CCG,30/11/2019,C&M-PMS DES Minor Surgery,PRC DELEGATED CO-COMMISSIONING,DR MILNER & PARTNERS,29744450," 2,165.00 "
Department of Health,NHS Sheffield CCG,30/11/2019,C&M-PMS Out of Hours Opt Outs,PRC DELEGATED CO-COMMISSIONING,DR MILNER & PARTNERS,29744450, 7.01 
Department of Health,NHS Sheffield CCG,30/11/2019,C&M-PMS PCN DES Participation,PRC DELEGATED CO-COMMISSIONING,DR MILNER & PARTNERS,29744450," 1,435.93 "
Department of Health,NHS Sheffield CCG,30/11/2019,C&M-PMS Prem Actual Rent,PRC DELEGATED CO-COMMISSIONING,DR MILNER & PARTNERS,29744450," 11,382.00 "
Department of Health,NHS Sheffield CCG,30/11/2019,C&M-PMS Prem Notional Rent,PRC DELEGATED CO-COMMISSIONING,DR MILNER & PARTNERS,29744450," 4,462.42 "
Department of Health,NHS Sheffield CCG,30/11/2019,C&M-PMS Prem Rates,PRC DELEGATED CO-COMMISSIONING,DR MILNER & PARTNERS,29744450," 2,593.00 "
Department of Health,NHS Sheffield CCG,30/11/2019,C&M-PMS Prem Water Rates,PRC DELEGATED CO-COMMISSIONING,DR MILNER & PARTNERS,29744450, 229.96 
Department of Health,NHS Sheffield CCG,30/11/2019,C&M-PMS QOF Aspiration,PRC DELEGATED CO-COMMISSIONING,DR MILNER & PARTNERS,29744450," 6,513.90 "
Department of Health,NHS Sheffield CCG,30/11/2019,C&M-PMS Contract Value,PRC DELEGATED CO-COMMISSIONING,DUNNINC ROAD SURGERY,29744452," 24,068.60 "
Department of Health,NHS Sheffield CCG,30/11/2019,C&M-PMS DES Minor Surgery,PRC DELEGATED CO-COMMISSIONING,DUNNINC ROAD SURGERY,29744452," 1,600.00 "
Department of Health,NHS Sheffield CCG,30/11/2019,C&M-PMS PCN DES Participation,PRC DELEGATED CO-COMMISSIONING,DUNNINC ROAD SURGERY,29744452, 448.76 
Department of Health,NHS Sheffield CCG,30/11/2019,C&M-PMS Prem Notional Rent,PRC DELEGATED CO-COMMISSIONING,DUNNINC ROAD SURGERY,29744452," 1,695.83 "
Department of Health,NHS Sheffield CCG,30/11/2019,C&M-PMS Prem Water Rates,PRC DELEGATED CO-COMMISSIONING,DUNNINC ROAD SURGERY,29744452, 118.76 
Department of Health,NHS Sheffield CCG,30/11/2019,C&M-PMS QOF Aspiration,PRC DELEGATED CO-COMMISSIONING,DUNNINC ROAD SURGERY,29744452," 2,054.91 "
Department of Health,NHS Sheffield CCG,30/11/2019,C&M-PMS Contract Value,PRC DELEGATED CO-COMMISSIONING,DYKES HALL MEDICAL CENTRE,29744454," 73,102.95 "
Department of Health,NHS Sheffield CCG,30/11/2019,C&M-PMS DES Extended Hours Access,PRC DELEGATED CO-COMMISSIONING,DYKES HALL MEDICAL CENTRE,29744454," 4,412.49 "
Department of Health,NHS Sheffield CCG,30/11/2019,C&M-PMS DES Minor Surgery,PRC DELEGATED CO-COMMISSIONING,DYKES HALL MEDICAL CENTRE,29744454, 480.00 
Department of Health,NHS Sheffield CCG,30/11/2019,C&M-PMS Out of Hours Opt Outs,PRC DELEGATED CO-COMMISSIONING,DYKES HALL MEDICAL CENTRE,29744454, 35.76 
Department of Health,NHS Sheffield CCG,30/11/2019,C&M-PMS PCN DES Clinical Director,PRC DELEGATED CO-COMMISSIONING,DYKES HALL MEDICAL CENTRE,29744454," 2,063.71 "
Department of Health,NHS Sheffield CCG,30/11/2019,C&M-PMS PCN DES PCN support,LOCAL ENHANCED SERVICES,DYKES HALL MEDICAL CENTRE,29744454," 4,516.88 "
Department of Health,NHS Sheffield CCG,30/11/2019,C&M-PMS PCN DES Participation,PRC DELEGATED CO-COMMISSIONING,DYKES HALL MEDICAL CENTRE,29744454," 1,386.86 "
Department of Health,NHS Sheffield CCG,30/11/2019,C&M-PMS Prem Notional Rent,PRC DELEGATED CO-COMMISSIONING,DYKES HALL MEDICAL CENTRE,29744454," 5,377.08 "
Department of Health,NHS Sheffield CCG,30/11/2019,C&M-PMS QOF Aspiration,PRC DELEGATED CO-COMMISSIONING,DYKES HALL MEDICAL CENTRE,29744454," 8,323.49 "
Department of Health,NHS Sheffield CCG,30/11/2019,C&M-PMS Contract Value,PRC DELEGATED CO-COMMISSIONING,EAST BANK MEDICAL CENTRE,29744456," 50,026.64 "
Department of Health,NHS Sheffield CCG,30/11/2019,C&M-PMS DES Minor Surgery,PRC DELEGATED CO-COMMISSIONING,EAST BANK MEDICAL CENTRE,29744456, 545.00 
Department of Health,NHS Sheffield CCG,30/11/2019,C&M-PMS PCN DES Participation,PRC DELEGATED CO-COMMISSIONING,EAST BANK MEDICAL CENTRE,29744456, 914.08 
Department of Health,NHS Sheffield CCG,30/11/2019,C&M-PMS Prem Notional Rent,PRC DELEGATED CO-COMMISSIONING,EAST BANK MEDICAL CENTRE,29744456," 10,583.33 "
Department of Health,NHS Sheffield CCG,30/11/2019,C&M-PMS Prem Rates,PRC DELEGATED CO-COMMISSIONING,EAST BANK MEDICAL CENTRE,29744456," 2,898.00 "
Department of Health,NHS Sheffield CCG,30/11/2019,C&M-PMS QOF Aspiration,PRC DELEGATED CO-COMMISSIONING,EAST BANK MEDICAL CENTRE,29744456," 5,026.31 "
Department of Health,NHS Sheffield CCG,30/11/2019,C&M-PMS Contract Value,PRC DELEGATED CO-COMMISSIONING,FIRTH PARK SURGERY,29744458," 74,885.12 "
Department of Health,NHS Sheffield CCG,30/11/2019,C&M-PMS DES Minor Surgery,PRC DELEGATED CO-COMMISSIONING,FIRTH PARK SURGERY,29744458," 1,120.00 "
Department of Health,NHS Sheffield CCG,30/11/2019,C&M-PMS Out of Hours Opt Outs,PRC DELEGATED CO-COMMISSIONING,FIRTH PARK SURGERY,29744458, 25.48 
Department of Health,NHS Sheffield CCG,30/11/2019,C&M-PMS PCN DES Participation,PRC DELEGATED CO-COMMISSIONING,FIRTH PARK SURGERY,29744458," 1,468.51 "
Department of Health,NHS Sheffield CCG,30/11/2019,C&M-PMS Prem Notional Rent,PRC DELEGATED CO-COMMISSIONING,FIRTH PARK SURGERY,29744458," 4,500.00 "
Department of Health,NHS Sheffield CCG,30/11/2019,C&M-PMS Prem Rates,PRC DELEGATED CO-COMMISSIONING,FIRTH PARK SURGERY,29744458," 1,360.00 "
Department of Health,NHS Sheffield CCG,30/11/2019,C&M-PMS Prem Water Rates,PRC DELEGATED CO-COMMISSIONING,FIRTH PARK SURGERY,29744458, 283.02 
Department of Health,NHS Sheffield CCG,30/11/2019,C&M-PMS QOF Aspiration,PRC DELEGATED CO-COMMISSIONING,FIRTH PARK SURGERY,29744458," 7,493.92 "
Department of Health,NHS Sheffield CCG,30/11/2019,C&M-PMS Contract Value,PRC DELEGATED CO-COMMISSIONING,FALKLAND HOUSE,29744460," 26,085.22 "
Department of Health,NHS Sheffield CCG,30/11/2019,C&M-PMS DES Minor Surgery,PRC DELEGATED CO-COMMISSIONING,FALKLAND HOUSE,29744460, 640.00 
Department of Health,NHS Sheffield CCG,30/11/2019,C&M-PMS Out of Hours Opt Outs,PRC DELEGATED CO-COMMISSIONING,FALKLAND HOUSE,29744460, 5.44 
Department of Health,NHS Sheffield CCG,30/11/2019,C&M-PMS PCN DES Participation,PRC DELEGATED CO-COMMISSIONING,FALKLAND HOUSE,29744460, 495.54 
Department of Health,NHS Sheffield CCG,30/11/2019,C&M-PMS PCO Other,PRC DELEGATED CO-COMMISSIONING,FALKLAND HOUSE,29744460, 276.40 
Department of Health,NHS Sheffield CCG,30/11/2019,C&M-PMS Prem Notional Rent,PRC DELEGATED CO-COMMISSIONING,FALKLAND HOUSE,29744460," 1,866.67 "
Department of Health,NHS Sheffield CCG,30/11/2019,C&M-PMS Prem Rates,PRC DELEGATED CO-COMMISSIONING,FALKLAND HOUSE,29744460, 773.00 
Department of Health,NHS Sheffield CCG,30/11/2019,C&M-PMS Prem Water Rates,PRC DELEGATED CO-COMMISSIONING,FALKLAND HOUSE,29744460, 65.17 
Department of Health,NHS Sheffield CCG,30/11/2019,C&M-PMS QOF Aspiration,PRC DELEGATED CO-COMMISSIONING,FALKLAND HOUSE,29744460," 2,925.24 "
Department of Health,NHS Sheffield CCG,30/11/2019,C&M-PMS Contract Value,PRC DELEGATED CO-COMMISSIONING,GLEADLESS MEDICAL CENTRE,29744462," 69,696.95 "
Department of Health,NHS Sheffield CCG,30/11/2019,C&M-PMS DES Minor Surgery,PRC DELEGATED CO-COMMISSIONING,GLEADLESS MEDICAL CENTRE,29744462, 160.00 
Department of Health,NHS Sheffield CCG,30/11/2019,C&M-PMS Out of Hours Opt Outs,PRC DELEGATED CO-COMMISSIONING,GLEADLESS MEDICAL CENTRE,29744462, 1.29 
Department of Health,NHS Sheffield CCG,30/11/2019,C&M-PMS PCN DES Participation,PRC DELEGATED CO-COMMISSIONING,GLEADLESS MEDICAL CENTRE,29744462," 1,300.70 "
Department of Health,NHS Sheffield CCG,30/11/2019,C&M-PMS PCO Other,PRC DELEGATED CO-COMMISSIONING,GLEADLESS MEDICAL CENTRE,29744462, 551.40 
Department of Health,NHS Sheffield CCG,30/11/2019,C&M-PMS Prem Notional Rent,PRC DELEGATED CO-COMMISSIONING,GLEADLESS MEDICAL CENTRE,29744462," 6,750.00 "
Department of Health,NHS Sheffield CCG,30/11/2019,C&M-PMS Prem Rates,PRC DELEGATED CO-COMMISSIONING,GLEADLESS MEDICAL CENTRE,29744462," 1,657.00 "
Department of Health,NHS Sheffield CCG,30/11/2019,C&M-PMS QOF Aspiration,PRC DELEGATED CO-COMMISSIONING,GLEADLESS MEDICAL CENTRE,29744462," 7,710.90 "
Department of Health,NHS Sheffield CCG,30/11/2019,C&M-PMS Contract Value,PRC DELEGATED CO-COMMISSIONING,HACKENTHORPE MEDICAL CENTRE,29744464," 49,392.47 "
Department of Health,NHS Sheffield CCG,30/11/2019,C&M-PMS DES Minor Surgery,PRC DELEGATED CO-COMMISSIONING,HACKENTHORPE MEDICAL CENTRE,29744464, 600.00 
Department of Health,NHS Sheffield CCG,30/11/2019,C&M-PMS PCN DES Participation,PRC DELEGATED CO-COMMISSIONING,HACKENTHORPE MEDICAL CENTRE,29744464, 926.86 
Department of Health,NHS Sheffield CCG,30/11/2019,C&M-PMS PCO Locum Adop/Pat/Mat,PRC DELEGATED CO-COMMISSIONING,HACKENTHORPE MEDICAL CENTRE,29744464," 2,802.48 "
Department of Health,NHS Sheffield CCG,30/11/2019,C&M-PMS PCO Other,PRC DELEGATED CO-COMMISSIONING,HACKENTHORPE MEDICAL CENTRE,29744464, 435.20 
Department of Health,NHS Sheffield CCG,30/11/2019,C&M-PMS Prem Notional Rent,PRC DELEGATED CO-COMMISSIONING,HACKENTHORPE MEDICAL CENTRE,29744464," 5,116.67 "
Department of Health,NHS Sheffield CCG,30/11/2019,C&M-PMS Prem Rates,PRC DELEGATED CO-COMMISSIONING,HACKENTHORPE MEDICAL CENTRE,29744464," 1,363.00 "
Department of Health,NHS Sheffield CCG,30/11/2019,C&M-PMS Prem Water Rates,PRC DELEGATED CO-COMMISSIONING,HACKENTHORPE MEDICAL CENTRE,29744464, 74.74 
Department of Health,NHS Sheffield CCG,30/11/2019,C&M-PMS QOF Aspiration,PRC DELEGATED CO-COMMISSIONING,HACKENTHORPE MEDICAL CENTRE,29744464," 6,528.39 "
Department of Health,NHS Sheffield CCG,30/11/2019,C&M-PMS Contract Value,PRC DELEGATED CO-COMMISSIONING,JAUNTY SPRINGS HEALTH CENTRE,29744466," 31,463.15 "
Department of Health,NHS Sheffield CCG,30/11/2019,C&M-PMS DES Extended Hours Access,PRC DELEGATED CO-COMMISSIONING,JAUNTY SPRINGS HEALTH CENTRE,29744466," 4,210.64 "
Department of Health,NHS Sheffield CCG,30/11/2019,C&M-PMS DES Minor Surgery,PRC DELEGATED CO-COMMISSIONING,JAUNTY SPRINGS HEALTH CENTRE,29744466, 205.00 
Department of Health,NHS Sheffield CCG,30/11/2019,C&M-PMS Out of Hours Opt Outs,PRC DELEGATED CO-COMMISSIONING,JAUNTY SPRINGS HEALTH CENTRE,29744466, 0.17 
Department of Health,NHS Sheffield CCG,30/11/2019,C&M-PMS PCN DES Clinical Director,PRC DELEGATED CO-COMMISSIONING,JAUNTY SPRINGS HEALTH CENTRE,29744466," 1,969.31 "
Department of Health,NHS Sheffield CCG,30/11/2019,C&M-PMS PCN DES PCN support,LOCAL ENHANCED SERVICES,JAUNTY SPRINGS HEALTH CENTRE,29744466," 4,310.25 "
Department of Health,NHS Sheffield CCG,30/11/2019,C&M-PMS PCN DES Participation,PRC DELEGATED CO-COMMISSIONING,JAUNTY SPRINGS HEALTH CENTRE,29744466, 583.08 
Department of Health,NHS Sheffield CCG,30/11/2019,C&M-PMS PCO Other,PRC DELEGATED CO-COMMISSIONING,JAUNTY SPRINGS HEALTH CENTRE,29744466, 263.60 
Department of Health,NHS Sheffield CCG,30/11/2019,C&M-PMS Prem Notional Rent,PRC DELEGATED CO-COMMISSIONING,JAUNTY SPRINGS HEALTH CENTRE,29744466," 3,208.33 "
Department of Health,NHS Sheffield CCG,30/11/2019,C&M-PMS Prem Rates,PRC DELEGATED CO-COMMISSIONING,JAUNTY SPRINGS HEALTH CENTRE,29744466, 710.00 
Department of Health,NHS Sheffield CCG,30/11/2019,C&M-PMS QOF Aspiration,PRC DELEGATED CO-COMMISSIONING,JAUNTY SPRINGS HEALTH CENTRE,29744466," 4,020.11 "
Department of Health,NHS Sheffield CCG,30/11/2019,C&M-PMS Contract Value,PRC DELEGATED CO-COMMISSIONING,MEADOWHEAD GROUP PRACTICE,29744468," 74,684.15 "
Department of Health,NHS Sheffield CCG,30/11/2019,C&M-PMS DES Minor Surgery,PRC DELEGATED CO-COMMISSIONING,MEADOWHEAD GROUP PRACTICE,29744468," 1,110.00 "
Department of Health,NHS Sheffield CCG,30/11/2019,C&M-PMS Out of Hours Opt Outs,PRC DELEGATED CO-COMMISSIONING,MEADOWHEAD GROUP PRACTICE,29744468, 20.35 
Department of Health,NHS Sheffield CCG,30/11/2019,C&M-PMS PCN DES Participation,PRC DELEGATED CO-COMMISSIONING,MEADOWHEAD GROUP PRACTICE,29744468," 1,403.48 "
Department of Health,NHS Sheffield CCG,30/11/2019,C&M-PMS Prem Cost Rent,PRC DELEGATED CO-COMMISSIONING,MEADOWHEAD GROUP PRACTICE,29744468," 3,647.42 "
Department of Health,NHS Sheffield CCG,30/11/2019,C&M-PMS Prem Notional Rent,PRC DELEGATED CO-COMMISSIONING,MEADOWHEAD GROUP PRACTICE,29744468," 3,358.33 "
Department of Health,NHS Sheffield CCG,30/11/2019,C&M-PMS Prem Rates,PRC DELEGATED CO-COMMISSIONING,MEADOWHEAD GROUP PRACTICE,29744468," 1,870.00 "
Department of Health,NHS Sheffield CCG,30/11/2019,C&M-PMS QOF Aspiration,PRC DELEGATED CO-COMMISSIONING,MEADOWHEAD GROUP PRACTICE,29744468," 9,076.52 "
Department of Health,NHS Sheffield CCG,30/11/2019,C&M-PMS Contract Value,PRC DELEGATED CO-COMMISSIONING,MANCHESTER ROAD SURGERY SHEFFIELD,29744470," 33,190.51 "
Department of Health,NHS Sheffield CCG,30/11/2019,C&M-PMS DES Minor Surgery,PRC DELEGATED CO-COMMISSIONING,MANCHESTER ROAD SURGERY SHEFFIELD,29744470," 1,385.00 "
Department of Health,NHS Sheffield CCG,30/11/2019,C&M-PMS PCN DES Participation,PRC DELEGATED CO-COMMISSIONING,MANCHESTER ROAD SURGERY SHEFFIELD,29744470, 618.32 
Department of Health,NHS Sheffield CCG,30/11/2019,C&M-PMS Prem Cost Rent,PRC DELEGATED CO-COMMISSIONING,MANCHESTER ROAD SURGERY SHEFFIELD,29744470," 3,472.17 "
Department of Health,NHS Sheffield CCG,30/11/2019,C&M-PMS Prem Notional Rent,PRC DELEGATED CO-COMMISSIONING,MANCHESTER ROAD SURGERY SHEFFIELD,29744470, 442.92 
Department of Health,NHS Sheffield CCG,30/11/2019,C&M-PMS Prem Rates,PRC DELEGATED CO-COMMISSIONING,MANCHESTER ROAD SURGERY SHEFFIELD,29744470, 970.00 
Department of Health,NHS Sheffield CCG,30/11/2019,C&M-PMS QOF Aspiration,PRC DELEGATED CO-COMMISSIONING,MANCHESTER ROAD SURGERY SHEFFIELD,29744470," 3,985.36 "
Department of Health,NHS Sheffield CCG,30/11/2019,C&M-PMS Contract Value,PRC DELEGATED CO-COMMISSIONING,MOSBOROUGH HEALTH CENTRE,29744472," 51,075.01 "
Department of Health,NHS Sheffield CCG,30/11/2019,C&M-PMS DES Minor Surgery,PRC DELEGATED CO-COMMISSIONING,MOSBOROUGH HEALTH CENTRE,29744472," 1,000.00 "
Department of Health,NHS Sheffield CCG,30/11/2019,C&M-PMS PCN DES Participation,PRC DELEGATED CO-COMMISSIONING,MOSBOROUGH HEALTH CENTRE,29744472, 927.38 
Department of Health,NHS Sheffield CCG,30/11/2019,C&M-PMS PCO Other,PRC DELEGATED CO-COMMISSIONING,MOSBOROUGH HEALTH CENTRE,29744472, 432.20 
Department of Health,NHS Sheffield CCG,30/11/2019,C&M-PMS Prem Notional Rent,PRC DELEGATED CO-COMMISSIONING,MOSBOROUGH HEALTH CENTRE,29744472," 4,091.67 "
Department of Health,NHS Sheffield CCG,30/11/2019,C&M-PMS Prem Rates,PRC DELEGATED CO-COMMISSIONING,MOSBOROUGH HEALTH CENTRE,29744472," 1,105.00 "
Department of Health,NHS Sheffield CCG,30/11/2019,C&M-PMS Prem Water Rates,PRC DELEGATED CO-COMMISSIONING,MOSBOROUGH HEALTH CENTRE,29744472, 113.14 
Department of Health,NHS Sheffield CCG,30/11/2019,C&M-PMS QOF Aspiration,PRC DELEGATED CO-COMMISSIONING,MOSBOROUGH HEALTH CENTRE,29744472," 5,736.56 "
Department of Health,NHS Sheffield CCG,30/11/2019,C&M-PMS Contract Value,PRC DELEGATED CO-COMMISSIONING,NETHERGREEN SURGERY,29744474," 63,791.23 "
Department of Health,NHS Sheffield CCG,30/11/2019,C&M-PMS DES Minor Surgery,PRC DELEGATED CO-COMMISSIONING,NETHERGREEN SURGERY,29744474," 1,895.00 "
Department of Health,NHS Sheffield CCG,30/11/2019,C&M-PMS Out of Hours Opt Outs,PRC DELEGATED CO-COMMISSIONING,NETHERGREEN SURGERY,29744474, 7.02 
Department of Health,NHS Sheffield CCG,30/11/2019,C&M-PMS PCN DES Participation,PRC DELEGATED CO-COMMISSIONING,NETHERGREEN SURGERY,29744474," 1,208.31 "
Department of Health,NHS Sheffield CCG,30/11/2019,C&M-PMS Prem Cost Rent,PRC DELEGATED CO-COMMISSIONING,NETHERGREEN SURGERY,29744474," 5,057.33 "
Department of Health,NHS Sheffield CCG,30/11/2019,C&M-PMS Prem Rates,PRC DELEGATED CO-COMMISSIONING,NETHERGREEN SURGERY,29744474," 1,264.00 "
Department of Health,NHS Sheffield CCG,30/11/2019,C&M-PMS Prem Water Rates,PRC DELEGATED CO-COMMISSIONING,NETHERGREEN SURGERY,29744474, 165.97 
Department of Health,NHS Sheffield CCG,30/11/2019,C&M-PMS QOF Aspiration,PRC DELEGATED CO-COMMISSIONING,NETHERGREEN SURGERY,29744474," 6,406.79 "
Department of Health,NHS Sheffield CCG,30/11/2019,C&M-PMS Contract Value,PRC DELEGATED CO-COMMISSIONING,OWLTHORPE MEDICAL CENTRE,29744476," 33,640.97 "
Department of Health,NHS Sheffield CCG,30/11/2019,C&M-PMS DES Minor Surgery,PRC DELEGATED CO-COMMISSIONING,OWLTHORPE MEDICAL CENTRE,29744476, 645.00 
Department of Health,NHS Sheffield CCG,30/11/2019,C&M-PMS Out of Hours Opt Outs,PRC DELEGATED CO-COMMISSIONING,OWLTHORPE MEDICAL CENTRE,29744476, 11.91 
Department of Health,NHS Sheffield CCG,30/11/2019,C&M-PMS PCN DES Participation,PRC DELEGATED CO-COMMISSIONING,OWLTHORPE MEDICAL CENTRE,29744476, 639.06 
Department of Health,NHS Sheffield CCG,30/11/2019,C&M-PMS PCO Locum Adop/Pat/Mat,PRC DELEGATED CO-COMMISSIONING,OWLTHORPE MEDICAL CENTRE,29744476," 7,528.10 "
Department of Health,NHS Sheffield CCG,30/11/2019,C&M-PMS PCO Other,PRC DELEGATED CO-COMMISSIONING,OWLTHORPE MEDICAL CENTRE,29744476," 2,473.60 "
Department of Health,NHS Sheffield CCG,30/11/2019,C&M-PMS Prem Actual Rent,PRC DELEGATED CO-COMMISSIONING,OWLTHORPE MEDICAL CENTRE,29744476," 7,539.58 "
Department of Health,NHS Sheffield CCG,30/11/2019,C&M-PMS Prem Rates,PRC DELEGATED CO-COMMISSIONING,OWLTHORPE MEDICAL CENTRE,29744476," 1,316.00 "
Department of Health,NHS Sheffield CCG,30/11/2019,C&M-PMS QOF Aspiration,PRC DELEGATED CO-COMMISSIONING,OWLTHORPE MEDICAL CENTRE,29744476," 3,873.48 "
Department of Health,NHS Sheffield CCG,30/11/2019,C&M-PMS Contract Value,PRC DELEGATED CO-COMMISSIONING,PAGE HALL MEDICAL CENTRE,29744477,-444.75 
Department of Health,NHS Sheffield CCG,30/11/2019,C&M-PMS GP Statutory Levy,PRC DELEGATED CO-COMMISSIONING,PAGE HALL MEDICAL CENTRE,29744477,-275.00 
Department of Health,NHS Sheffield CCG,30/11/2019,C&M-PMS Out of Hours Opt Outs,PRC DELEGATED CO-COMMISSIONING,PAGE HALL MEDICAL CENTRE,29744477,"-2,699.96 "
Department of Health,NHS Sheffield CCG,30/11/2019,C&M-PMS Contract Value,PRC DELEGATED CO-COMMISSIONING,PAGE HALL MEDICAL CENTRE,29744478," 57,795.10 "
Department of Health,NHS Sheffield CCG,30/11/2019,C&M-PMS DES Minor Surgery,PRC DELEGATED CO-COMMISSIONING,PAGE HALL MEDICAL CENTRE,29744478, 120.00 
Department of Health,NHS Sheffield CCG,30/11/2019,C&M-PMS Out of Hours Opt Outs,PRC DELEGATED CO-COMMISSIONING,PAGE HALL MEDICAL CENTRE,29744478, 20.84 
Department of Health,NHS Sheffield CCG,30/11/2019,C&M-PMS PCN DES Participation,PRC DELEGATED CO-COMMISSIONING,PAGE HALL MEDICAL CENTRE,29744478," 1,083.01 "
Department of Health,NHS Sheffield CCG,30/11/2019,C&M-PMS PCO Other,PRC DELEGATED CO-COMMISSIONING,PAGE HALL MEDICAL CENTRE,29744478, 495.10 
Department of Health,NHS Sheffield CCG,30/11/2019,C&M-PMS Prem Notional Rent,PRC DELEGATED CO-COMMISSIONING,PAGE HALL MEDICAL CENTRE,29744478," 4,833.33 "
Department of Health,NHS Sheffield CCG,30/11/2019,C&M-PMS Prem Rates,PRC DELEGATED CO-COMMISSIONING,PAGE HALL MEDICAL CENTRE,29744478," 1,077.00 "
Department of Health,NHS Sheffield CCG,30/11/2019,C&M-PMS QOF Aspiration,PRC DELEGATED CO-COMMISSIONING,PAGE HALL MEDICAL CENTRE,29744478," 4,558.05 "
Department of Health,NHS Sheffield CCG,30/11/2019,C&M-PMS Contract Value,PRC DELEGATED CO-COMMISSIONING,PORTER BROOK MEDICAL CENTRE,29744479,"-6,328.21 "
Department of Health,NHS Sheffield CCG,30/11/2019,C&M-PMS GP Statutory Levy,PRC DELEGATED CO-COMMISSIONING,PORTER BROOK MEDICAL CENTRE,29744479,"-1,047.87 "
Department of Health,NHS Sheffield CCG,30/11/2019,C&M-PMS Out of Hours Opt Outs,PRC DELEGATED CO-COMMISSIONING,PORTER BROOK MEDICAL CENTRE,29744479,"-8,642.32 "
Department of Health,NHS Sheffield CCG,30/11/2019,C&M-PMS Contract Value,PRC DELEGATED CO-COMMISSIONING,RICHMOND MEDICAL CENTRE,29744481," 68,154.48 "
Department of Health,NHS Sheffield CCG,30/11/2019,C&M-PMS DES Minor Surgery,PRC DELEGATED CO-COMMISSIONING,RICHMOND MEDICAL CENTRE,29744481," 2,160.00 "
Department of Health,NHS Sheffield CCG,30/11/2019,C&M-PMS PCN DES Participation,PRC DELEGATED CO-COMMISSIONING,RICHMOND MEDICAL CENTRE,29744481," 1,271.70 "
Department of Health,NHS Sheffield CCG,30/11/2019,C&M-PMS PCO Other,PRC DELEGATED CO-COMMISSIONING,RICHMOND MEDICAL CENTRE,29744481, 561.50 
Department of Health,NHS Sheffield CCG,30/11/2019,C&M-PMS Prem Notional Rent,PRC DELEGATED CO-COMMISSIONING,RICHMOND MEDICAL CENTRE,29744481," 4,731.00 "
Department of Health,NHS Sheffield CCG,30/11/2019,C&M-PMS Prem Rates,PRC DELEGATED CO-COMMISSIONING,RICHMOND MEDICAL CENTRE,29744481," 1,259.00 "
Department of Health,NHS Sheffield CCG,30/11/2019,C&M-PMS QOF Aspiration,PRC DELEGATED CO-COMMISSIONING,RICHMOND MEDICAL CENTRE,29744481," 8,208.20 "
Department of Health,NHS Sheffield CCG,30/11/2019,C&M-PMS Contract Value,PRC DELEGATED CO-COMMISSIONING,SELBORNE ROAD MEDICAL CENTRE,29744483," 20,133.31 "
Department of Health,NHS Sheffield CCG,30/11/2019,C&M-PMS DES Minor Surgery,PRC DELEGATED CO-COMMISSIONING,SELBORNE ROAD MEDICAL CENTRE,29744483, 170.00 
Department of Health,NHS Sheffield CCG,30/11/2019,C&M-PMS Out of Hours Opt Outs,PRC DELEGATED CO-COMMISSIONING,SELBORNE ROAD MEDICAL CENTRE,29744483, 14.76 
Department of Health,NHS Sheffield CCG,30/11/2019,C&M-PMS PCN DES Participation,PRC DELEGATED CO-COMMISSIONING,SELBORNE ROAD MEDICAL CENTRE,29744483, 369.86 
Department of Health,NHS Sheffield CCG,30/11/2019,C&M-PMS PCO Other,PRC DELEGATED CO-COMMISSIONING,SELBORNE ROAD MEDICAL CENTRE,29744483, 205.60 
Department of Health,NHS Sheffield CCG,30/11/2019,C&M-PMS Prem Notional Rent,PRC DELEGATED CO-COMMISSIONING,SELBORNE ROAD MEDICAL CENTRE,29744483," 1,735.42 "
Department of Health,NHS Sheffield CCG,30/11/2019,C&M-PMS Prem Rates,PRC DELEGATED CO-COMMISSIONING,SELBORNE ROAD MEDICAL CENTRE,29744483, 601.00 
Department of Health,NHS Sheffield CCG,30/11/2019,C&M-PMS QOF Aspiration,PRC DELEGATED CO-COMMISSIONING,SELBORNE ROAD MEDICAL CENTRE,29744483," 1,995.11 "
Department of Health,NHS Sheffield CCG,30/11/2019,C&M-PMS Contract Value,PRC DELEGATED CO-COMMISSIONING,RUSTLINGS ROAD MEDICAL CENTRE,29744485," 28,813.95 "
Department of Health,NHS Sheffield CCG,30/11/2019,C&M-PMS PCN DES Participation,PRC DELEGATED CO-COMMISSIONING,RUSTLINGS ROAD MEDICAL CENTRE,29744485, 527.62 
Department of Health,NHS Sheffield CCG,30/11/2019,C&M-PMS PCO Other,PRC DELEGATED CO-COMMISSIONING,RUSTLINGS ROAD MEDICAL CENTRE,29744485, 313.80 
Department of Health,NHS Sheffield CCG,30/11/2019,C&M-PMS Prem Notional Rent,PRC DELEGATED CO-COMMISSIONING,RUSTLINGS ROAD MEDICAL CENTRE,29744485," 1,312.50 "
Department of Health,NHS Sheffield CCG,30/11/2019,C&M-PMS QOF Aspiration,PRC DELEGATED CO-COMMISSIONING,RUSTLINGS ROAD MEDICAL CENTRE,29744485," 2,653.37 "
Department of Health,NHS Sheffield CCG,30/11/2019,C&M-PMS Contract Value,PRC DELEGATED CO-COMMISSIONING,SLOAN MEDICAL CENTRE,29744487," 96,724.70 "
Department of Health,NHS Sheffield CCG,30/11/2019,C&M-PMS DES Minor Surgery,PRC DELEGATED CO-COMMISSIONING,SLOAN MEDICAL CENTRE,29744487," 3,460.00 "
Department of Health,NHS Sheffield CCG,30/11/2019,C&M-PMS PCN DES Participation,PRC DELEGATED CO-COMMISSIONING,SLOAN MEDICAL CENTRE,29744487," 1,809.97 "
Department of Health,NHS Sheffield CCG,30/11/2019,C&M-PMS PCO Locum Adop/Pat/Mat,PRC DELEGATED CO-COMMISSIONING,SLOAN MEDICAL CENTRE,29744487," 3,818.04 "
Department of Health,NHS Sheffield CCG,30/11/2019,C&M-PMS PCO Other,PRC DELEGATED CO-COMMISSIONING,SLOAN MEDICAL CENTRE,29744487, 802.90 
Department of Health,NHS Sheffield CCG,30/11/2019,C&M-PMS Prem Actual Rent,PRC DELEGATED CO-COMMISSIONING,SLOAN MEDICAL CENTRE,29744487," 34,861.73 "
Department of Health,NHS Sheffield CCG,30/11/2019,C&M-PMS Prem Notional Rent,PRC DELEGATED CO-COMMISSIONING,SLOAN MEDICAL CENTRE,29744487," 6,791.19 "
Department of Health,NHS Sheffield CCG,30/11/2019,C&M-PMS Prem Rates,PRC DELEGATED CO-COMMISSIONING,SLOAN MEDICAL CENTRE,29744487," 3,423.00 "
Department of Health,NHS Sheffield CCG,30/11/2019,C&M-PMS QOF Aspiration,PRC DELEGATED CO-COMMISSIONING,SLOAN MEDICAL CENTRE,29744487," 10,003.70 "
Department of Health,NHS Sheffield CCG,30/11/2019,C&M-PMS Contract Value,PRC DELEGATED CO-COMMISSIONING,SOTHALL MEDICAL CENTRE,29744489," 72,665.29 "
Department of Health,NHS Sheffield CCG,30/11/2019,C&M-PMS DES Minor Surgery,PRC DELEGATED CO-COMMISSIONING,SOTHALL MEDICAL CENTRE,29744489," 1,710.00 "
Department of Health,NHS Sheffield CCG,30/11/2019,C&M-PMS Out of Hours Opt Outs,PRC DELEGATED CO-COMMISSIONING,SOTHALL MEDICAL CENTRE,29744489, 15.00 
Department of Health,NHS Sheffield CCG,30/11/2019,C&M-PMS PCN DES Participation,PRC DELEGATED CO-COMMISSIONING,SOTHALL MEDICAL CENTRE,29744489," 1,351.91 "
Department of Health,NHS Sheffield CCG,30/11/2019,C&M-PMS PCO Other,PRC DELEGATED CO-COMMISSIONING,SOTHALL MEDICAL CENTRE,29744489, 627.60 
Department of Health,NHS Sheffield CCG,30/11/2019,C&M-PMS Prem Notional Rent,PRC DELEGATED CO-COMMISSIONING,SOTHALL MEDICAL CENTRE,29744489," 5,116.67 "
Department of Health,NHS Sheffield CCG,30/11/2019,C&M-PMS Prem Rates,PRC DELEGATED CO-COMMISSIONING,SOTHALL MEDICAL CENTRE,29744489," 1,412.00 "
Department of Health,NHS Sheffield CCG,30/11/2019,C&M-PMS Prem Water Rates,PRC DELEGATED CO-COMMISSIONING,SOTHALL MEDICAL CENTRE,29744489, 101.88 
Department of Health,NHS Sheffield CCG,30/11/2019,C&M-PMS QOF Aspiration,PRC DELEGATED CO-COMMISSIONING,SOTHALL MEDICAL CENTRE,29744489," 8,630.52 "
Department of Health,NHS Sheffield CCG,30/11/2019,C&M-PMS Contract Value,PRC DELEGATED CO-COMMISSIONING,SOUTHEY GREEN MEDICAL CENTRE,29744491," 25,206.94 "
Department of Health,NHS Sheffield CCG,30/11/2019,C&M-PMS Out of Hours Opt Outs,PRC DELEGATED CO-COMMISSIONING,SOUTHEY GREEN MEDICAL CENTRE,29744491, 8.62 
Department of Health,NHS Sheffield CCG,30/11/2019,C&M-PMS PCN DES Participation,PRC DELEGATED CO-COMMISSIONING,SOUTHEY GREEN MEDICAL CENTRE,29744491, 475.68 
Department of Health,NHS Sheffield CCG,30/11/2019,C&M-PMS Prem Notional Rent,PRC DELEGATED CO-COMMISSIONING,SOUTHEY GREEN MEDICAL CENTRE,29744491," 3,362.50 "
Department of Health,NHS Sheffield CCG,30/11/2019,C&M-PMS QOF Aspiration,PRC DELEGATED CO-COMMISSIONING,SOUTHEY GREEN MEDICAL CENTRE,29744491," 2,668.69 "
Department of Health,NHS Sheffield CCG,30/11/2019,C&M-PMS Contract Value,PRC DELEGATED CO-COMMISSIONING,UNIVERSITY HEALTH SERVICE,29744494,"-11,798.15 "
Department of Health,NHS Sheffield CCG,30/11/2019,C&M-PMS DES Extended Hours Access,PRC DELEGATED CO-COMMISSIONING,UNIVERSITY HEALTH SERVICE,29744494,"-4,573.92 "
Department of Health,NHS Sheffield CCG,30/11/2019,C&M-PMS GP Statutory Levy,PRC DELEGATED CO-COMMISSIONING,UNIVERSITY HEALTH SERVICE,29744494,"-1,459.68 "
Department of Health,NHS Sheffield CCG,30/11/2019,C&M-PMS Out of Hours Opt Outs,PRC DELEGATED CO-COMMISSIONING,UNIVERSITY HEALTH SERVICE,29744494,"-11,923.97 "
Department of Health,NHS Sheffield CCG,30/11/2019,C&M-PMS PCN DES Clinical Director,PRC DELEGATED CO-COMMISSIONING,UNIVERSITY HEALTH SERVICE,29744494,"-2,139.21 "
Department of Health,NHS Sheffield CCG,30/11/2019,C&M-PMS PCN DES PCN support,LOCAL ENHANCED SERVICES,UNIVERSITY HEALTH SERVICE,29744494,"-4,682.13 "
Department of Health,NHS Sheffield CCG,30/11/2019,C&M-PMS Contract Value,PRC DELEGATED CO-COMMISSIONING,UNIVERSITY HEALTH SERVICE,29744495," 246,613.06 "
Department of Health,NHS Sheffield CCG,30/11/2019,C&M-PMS DES Extended Hours Access,PRC DELEGATED CO-COMMISSIONING,UNIVERSITY HEALTH SERVICE,29744495," 4,573.92 "
Department of Health,NHS Sheffield CCG,30/11/2019,C&M-PMS DES Minor Surgery,PRC DELEGATED CO-COMMISSIONING,UNIVERSITY HEALTH SERVICE,29744495, 170.00 
Department of Health,NHS Sheffield CCG,30/11/2019,C&M-PMS Out of Hours Opt Outs,PRC DELEGATED CO-COMMISSIONING,UNIVERSITY HEALTH SERVICE,29744495, 572.06 
Department of Health,NHS Sheffield CCG,30/11/2019,C&M-PMS PCN DES Clinical Director,PRC DELEGATED CO-COMMISSIONING,UNIVERSITY HEALTH SERVICE,29744495," 2,139.21 "
Department of Health,NHS Sheffield CCG,30/11/2019,C&M-PMS PCN DES PCN support,LOCAL ENHANCED SERVICES,UNIVERSITY HEALTH SERVICE,29744495," 4,682.13 "
Department of Health,NHS Sheffield CCG,30/11/2019,C&M-PMS PCN DES Participation,PRC DELEGATED CO-COMMISSIONING,UNIVERSITY HEALTH SERVICE,29744495," 3,535.52 "
Department of Health,NHS Sheffield CCG,30/11/2019,C&M-PMS Prem Notional Rent,PRC DELEGATED CO-COMMISSIONING,UNIVERSITY HEALTH SERVICE,29744495," 15,833.33 "
Department of Health,NHS Sheffield CCG,30/11/2019,C&M-PMS QOF Aspiration,PRC DELEGATED CO-COMMISSIONING,UNIVERSITY HEALTH SERVICE,29744495," 4,031.41 "
Department of Health,NHS Sheffield CCG,30/11/2019,C&M-PMS Contract Value,PRC DELEGATED CO-COMMISSIONING,UPWELL STREET SURGERY,29744497," 37,734.18 "
Department of Health,NHS Sheffield CCG,30/11/2019,C&M-PMS DES Minor Surgery,PRC DELEGATED CO-COMMISSIONING,UPWELL STREET SURGERY,29744497, 360.00 
Department of Health,NHS Sheffield CCG,30/11/2019,C&M-PMS Out of Hours Opt Outs,PRC DELEGATED CO-COMMISSIONING,UPWELL STREET SURGERY,29744497, 20.26 
Department of Health,NHS Sheffield CCG,30/11/2019,C&M-PMS PCN DES Participation,PRC DELEGATED CO-COMMISSIONING,UPWELL STREET SURGERY,29744497, 713.41 
Department of Health,NHS Sheffield CCG,30/11/2019,C&M-PMS PCO Other,PRC DELEGATED CO-COMMISSIONING,UPWELL STREET SURGERY,29744497, 324.80 
Department of Health,NHS Sheffield CCG,30/11/2019,C&M-PMS Prem Notional Rent,PRC DELEGATED CO-COMMISSIONING,UPWELL STREET SURGERY,29744497," 8,137.50 "
Department of Health,NHS Sheffield CCG,30/11/2019,C&M-PMS Prem Rates,PRC DELEGATED CO-COMMISSIONING,UPWELL STREET SURGERY,29744497," 1,340.00 "
Department of Health,NHS Sheffield CCG,30/11/2019,C&M-PMS QOF Aspiration,PRC DELEGATED CO-COMMISSIONING,UPWELL STREET SURGERY,29744497," 4,056.38 "
Department of Health,NHS Sheffield CCG,30/11/2019,C&M-PMS Contract Value,PRC DELEGATED CO-COMMISSIONING,VALLEY MEDICAL CENTRE,29744499," 80,227.89 "
Department of Health,NHS Sheffield CCG,30/11/2019,C&M-PMS DES Extended Hours Access,PRC DELEGATED CO-COMMISSIONING,VALLEY MEDICAL CENTRE,29744499," 2,533.07 "
Department of Health,NHS Sheffield CCG,30/11/2019,C&M-PMS DES Minor Surgery,PRC DELEGATED CO-COMMISSIONING,VALLEY MEDICAL CENTRE,29744499," 3,445.00 "
Department of Health,NHS Sheffield CCG,30/11/2019,C&M-PMS PCN DES Clinical Director,PRC DELEGATED CO-COMMISSIONING,VALLEY MEDICAL CENTRE,29744499," 1,184.71 "
Department of Health,NHS Sheffield CCG,30/11/2019,C&M-PMS PCN DES PCN support,LOCAL ENHANCED SERVICES,VALLEY MEDICAL CENTRE,29744499," 2,593.00 "
Department of Health,NHS Sheffield CCG,30/11/2019,C&M-PMS PCN DES Participation,PRC DELEGATED CO-COMMISSIONING,VALLEY MEDICAL CENTRE,29744499," 1,492.89 "
Department of Health,NHS Sheffield CCG,30/11/2019,C&M-PMS Prem Rates,PRC DELEGATED CO-COMMISSIONING,VALLEY MEDICAL CENTRE,29744499," 1,664.00 "
Department of Health,NHS Sheffield CCG,30/11/2019,C&M-PMS Prem Water Rates,PRC DELEGATED CO-COMMISSIONING,VALLEY MEDICAL CENTRE,29744499, 281.15 
Department of Health,NHS Sheffield CCG,30/11/2019,C&M-PMS QOF Aspiration,PRC DELEGATED CO-COMMISSIONING,VALLEY MEDICAL CENTRE,29744499," 8,453.91 "
Department of Health,NHS Sheffield CCG,30/11/2019,C&M-PMS Contract Value,PRC DELEGATED CO-COMMISSIONING,WINCOBANK MEDICAL CENTRE,29744501," 63,823.46 "
Department of Health,NHS Sheffield CCG,30/11/2019,C&M-PMS DES Minor Surgery,PRC DELEGATED CO-COMMISSIONING,WINCOBANK MEDICAL CENTRE,29744501," 2,440.00 "
Department of Health,NHS Sheffield CCG,30/11/2019,C&M-PMS Out of Hours Opt Outs,PRC DELEGATED CO-COMMISSIONING,WINCOBANK MEDICAL CENTRE,29744501, 14.95 
Department of Health,NHS Sheffield CCG,30/11/2019,C&M-PMS PCN DES Participation,PRC DELEGATED CO-COMMISSIONING,WINCOBANK MEDICAL CENTRE,29744501," 1,179.69 "
Department of Health,NHS Sheffield CCG,30/11/2019,C&M-PMS Prem Healthcentre Rent,PRC DELEGATED CO-COMMISSIONING,WINCOBANK MEDICAL CENTRE,29744501," 45,121.79 "
Department of Health,NHS Sheffield CCG,30/11/2019,C&M-PMS QOF Aspiration,PRC DELEGATED CO-COMMISSIONING,WINCOBANK MEDICAL CENTRE,29744501," 6,283.36 "
Department of Health,NHS Sheffield CCG,30/11/2019,C&M-PMS Contract Value,PRC DELEGATED CO-COMMISSIONING,FOXHILL MEDICAL CENTRE SHEFFIELD,29744503," 51,940.57 "
Department of Health,NHS Sheffield CCG,30/11/2019,C&M-PMS DES Minor Surgery,PRC DELEGATED CO-COMMISSIONING,FOXHILL MEDICAL CENTRE SHEFFIELD,29744503, 865.00 
Department of Health,NHS Sheffield CCG,30/11/2019,C&M-PMS PCN DES Participation,PRC DELEGATED CO-COMMISSIONING,FOXHILL MEDICAL CENTRE SHEFFIELD,29744503, 977.79 
Department of Health,NHS Sheffield CCG,30/11/2019,C&M-PMS PCO Other,PRC DELEGATED CO-COMMISSIONING,FOXHILL MEDICAL CENTRE SHEFFIELD,29744503, 400.60 
Department of Health,NHS Sheffield CCG,30/11/2019,C&M-PMS Prem Healthcentre Rent,PRC DELEGATED CO-COMMISSIONING,FOXHILL MEDICAL CENTRE SHEFFIELD,29744503," 46,751.17 "
Department of Health,NHS Sheffield CCG,30/11/2019,C&M-PMS QOF Aspiration,PRC DELEGATED CO-COMMISSIONING,FOXHILL MEDICAL CENTRE SHEFFIELD,29744503," 5,618.87 "
Department of Health,NHS Sheffield CCG,30/11/2019,C&M-PMS Contract Value,PRC DELEGATED CO-COMMISSIONING,FORGE HEALTH GROUP,29744505," 119,782.93 "
Department of Health,NHS Sheffield CCG,30/11/2019,C&M-PMS DES Extended Hours Access,PRC DELEGATED CO-COMMISSIONING,FORGE HEALTH GROUP,29744505," 6,869.48 "
Department of Health,NHS Sheffield CCG,30/11/2019,C&M-PMS DES Minor Surgery,PRC DELEGATED CO-COMMISSIONING,FORGE HEALTH GROUP,29744505," 4,415.00 "
Department of Health,NHS Sheffield CCG,30/11/2019,C&M-PMS Out of Hours Opt Outs,PRC DELEGATED CO-COMMISSIONING,FORGE HEALTH GROUP,29744505, 10.15 
Department of Health,NHS Sheffield CCG,30/11/2019,C&M-PMS PCN DES Clinical Director,PRC DELEGATED CO-COMMISSIONING,FORGE HEALTH GROUP,29744505," 3,212.84 "
Department of Health,NHS Sheffield CCG,30/11/2019,C&M-PMS PCN DES PCN support,LOCAL ENHANCED SERVICES,FORGE HEALTH GROUP,29744505," 7,032.00 "
Department of Health,NHS Sheffield CCG,30/11/2019,C&M-PMS PCN DES Participation,PRC DELEGATED CO-COMMISSIONING,FORGE HEALTH GROUP,29744505," 2,225.15 "
Department of Health,NHS Sheffield CCG,30/11/2019,C&M-PMS Prem Healthcentre Rent,PRC DELEGATED CO-COMMISSIONING,FORGE HEALTH GROUP,29744505," 32,899.56 "
Department of Health,NHS Sheffield CCG,30/11/2019,C&M-PMS Prem Notional Rent,PRC DELEGATED CO-COMMISSIONING,FORGE HEALTH GROUP,29744505," 9,650.00 "
Department of Health,NHS Sheffield CCG,30/11/2019,C&M-PMS Prem Rates,PRC DELEGATED CO-COMMISSIONING,FORGE HEALTH GROUP,29744505," 1,990.00 "
Department of Health,NHS Sheffield CCG,30/11/2019,C&M-PMS QOF Aspiration,PRC DELEGATED CO-COMMISSIONING,FORGE HEALTH GROUP,29744505," 11,432.76 "
Department of Health,NHS Sheffield CCG,30/11/2019,C&M-APMS Contract Value,PRC DELEGATED CO-COMMISSIONING,CLOVER CITY PRACTICE,29744507," 29,080.34 "
Department of Health,NHS Sheffield CCG,30/11/2019,C&M-APMS DES Minor Surgery,PRC DELEGATED CO-COMMISSIONING,CLOVER CITY PRACTICE,29744507, 40.00 
Department of Health,NHS Sheffield CCG,30/11/2019,C&M-APMS PCN DES Participation,PRC DELEGATED CO-COMMISSIONING,CLOVER CITY PRACTICE,29744507, 529.90 
Department of Health,NHS Sheffield CCG,30/11/2019,C&M-PMS QOF Aspiration,PRC DELEGATED CO-COMMISSIONING,CLOVER CITY PRACTICE,29744507," 1,537.57 "
Department of Health,NHS Sheffield CCG,30/11/2019,C&M-PMS Contract Value,PRC DELEGATED CO-COMMISSIONING,WOODSEATS MEDICAL CENTRE,29749240," 80,266.39 "
Department of Health,NHS Sheffield CCG,30/11/2019,C&M-PMS DES Minor Surgery,PRC DELEGATED CO-COMMISSIONING,WOODSEATS MEDICAL CENTRE,29749240," 4,720.00 "
Department of Health,NHS Sheffield CCG,30/11/2019,C&M-PMS PCN DES Participation,PRC DELEGATED CO-COMMISSIONING,WOODSEATS MEDICAL CENTRE,29749240," 1,439.13 "
Department of Health,NHS Sheffield CCG,30/11/2019,C&M-PMS PCO Locum Adop/Pat/Mat,PRC DELEGATED CO-COMMISSIONING,WOODSEATS MEDICAL CENTRE,29749240," 19,662.64 "
Department of Health,NHS Sheffield CCG,30/11/2019,C&M-PMS PCO Other,PRC DELEGATED CO-COMMISSIONING,WOODSEATS MEDICAL CENTRE,29749240, 622.70 
Department of Health,NHS Sheffield CCG,30/11/2019,C&M-PMS Prem Notional Rent,PRC DELEGATED CO-COMMISSIONING,WOODSEATS MEDICAL CENTRE,29749240," 11,666.67 "
Department of Health,NHS Sheffield CCG,30/11/2019,C&M-PMS Prem Rates,PRC DELEGATED CO-COMMISSIONING,WOODSEATS MEDICAL CENTRE,29749240," 3,100.00 "
Department of Health,NHS Sheffield CCG,30/11/2019,C&M-PMS QOF Aspiration,PRC DELEGATED CO-COMMISSIONING,WOODSEATS MEDICAL CENTRE,29749240," 8,242.64 "
Department of Health,NHS Sheffield CCG,30/11/2019,C&M-PMS Contract Value,PRC DELEGATED CO-COMMISSIONING,MANOR & PARK GROUP PRACTICE,29749241," 72,704.78 "
Department of Health,NHS Sheffield CCG,30/11/2019,C&M-PMS Out of Hours Opt Outs,PRC DELEGATED CO-COMMISSIONING,MANOR & PARK GROUP PRACTICE,29749241, 89.16 
Department of Health,NHS Sheffield CCG,30/11/2019,C&M-PMS PCN DES Participation,PRC DELEGATED CO-COMMISSIONING,MANOR & PARK GROUP PRACTICE,29749241," 1,445.35 "
Department of Health,NHS Sheffield CCG,30/11/2019,C&M-PMS Prem Notional Rent,PRC DELEGATED CO-COMMISSIONING,MANOR & PARK GROUP PRACTICE,29749241," 9,050.00 "
Department of Health,NHS Sheffield CCG,30/11/2019,C&M-PMS Prem Rates,PRC DELEGATED CO-COMMISSIONING,MANOR & PARK GROUP PRACTICE,29749241," 1,747.00 "
Department of Health,NHS Sheffield CCG,30/11/2019,C&M-PMS QOF Aspiration,PRC DELEGATED CO-COMMISSIONING,MANOR & PARK GROUP PRACTICE,29749241," 7,420.75 "
Department of Health,NHS Sheffield CCG,30/11/2019,Miscellaneous Expenditure (L9),HUMAN RESOURCES,TICE SEMINARS LTD T/A THE PACIFIC INSTITUTE,29751442," 59,850.00 "
Department of Health,NHS Sheffield CCG,30/11/2019,Clinical&Medical-Independent Sector,ACUTE COMMISSIONING,BMI HEALTHCARE LTD,29751510," 59,155.50 "
Department of Health,NHS Sheffield CCG,30/11/2019,Clinical&Medical-Independent Sector,Mental Health Services - S117 Mental Health,MOORVILLE RESIDENTIAL,29751530," 14,576.40 "
Department of Health,NHS Sheffield CCG,30/11/2019,Cont Care-Learning Disab(<65),CHC ADULT FULLY FUNDED,MOORVILLE RESIDENTIAL,29751530," 8,853.90 "
Department of Health,NHS Sheffield CCG,30/11/2019,Cont Care-Learning Disab(<65),CHC ADULT JOINT FUNDED,MOORVILLE RESIDENTIAL,29751530," 3,894.90 "
Department of Health,NHS Sheffield CCG,30/11/2019,Cont Care-Mental Health (<65),CHC ADULT JOINT FUNDED,MOORVILLE RESIDENTIAL,29751530, 475.80 
Department of Health,NHS Sheffield CCG,30/11/2019,Clinical&Medical-Independent Sector,MENTAL HEALTH CONTRACTS,SOUTH YORKSHIRE HOUSING ASSOCIATION LTD,29751599," 34,435.00 "
Department of Health,NHS Sheffield CCG,30/11/2019,Clinical&Medical-Independent Sector,MENTAL HEALTH CONTRACTS,SUSASH GB LTD T/A EAGLE HOUSE,29751601," 30,092.00 "
Department of Health,NHS Sheffield CCG,30/11/2019,Cont Care- Adult 100% Fully Funded,CHC ADULT FULLY FUNDED,SOUTH YORKSHIRE HOUSING ASSOCIATION LTD,29751606," 25,500.00 "
Department of Health,NHS Sheffield CCG,30/11/2019,Clinical&Medical-Independent Sector,ACUTE COMMISSIONING,ONEHEALTH GROUP,29751633," 71,286.25 "
Department of Health,NHS Sheffield CCG,30/11/2019,Cont Care-Funded Nursing Care Allow,FUNDED NURSING CARE,ROSEBERRY CARE CENTRES,29751649," 28,063.39 "
Department of Health,NHS Sheffield CCG,30/11/2019,Cont Care-Physical Disab (<65),CHC ADULT FULLY FUNDED,COUNTRY COURT CARE LTD,29751653," 38,022.92 "
Department of Health,NHS Sheffield CCG,30/11/2019,Cont Care- Prior Year Payments,CHC ADULT FULLY FUNDED,WILLOWBECK HEALTH CARE LTD,29751654," 58,358.58 "
Department of Health,NHS Sheffield CCG,30/11/2019,Cont Care-Physical Disab (65+),CHC ADULT FULLY FUNDED,BC SHEFFIELD LTD,29751657," 38,229.75 "
Department of Health,NHS Sheffield CCG,30/11/2019,Cont Care-Physical Disab (65+),CHC ADULT FULLY FUNDED,ABBEYCARE NURSING,29751658," 51,722.10 "
Department of Health,NHS Sheffield CCG,30/11/2019,Cont Care-Funded Nursing Care Allow,FUNDED NURSING CARE,BONDCARE,29751663," 34,270.80 "
Department of Health,NHS Sheffield CCG,30/11/2019,Cont Care-Physical Disab (<65),CHC ADULT FULLY FUNDED,SOUTH YORKSHIRE HOUSING ASSOCIATION LTD,29751669," 85,933.44 "
Department of Health,NHS Sheffield CCG,30/11/2019,Cont Care-Physical Disab (<65),CHC ADULT FULLY FUNDED,BONDCARE,29751670," 31,372.54 "
Department of Health,NHS Sheffield CCG,30/11/2019,Cont Care-Physical Disab (<65),CHC ADULT FULLY FUNDED,FOUR SEASONS HEALTH CARE LTD,29751704," 27,404.29 "
Department of Health,NHS Sheffield CCG,30/11/2019,Cont Care-Physical Disab (<65),CHC ADULT FULLY FUNDED,LONGLEY HEALTH CARE LTD,29751706," 76,962.48 "
Department of Health,NHS Sheffield CCG,30/11/2019,Cont Care-Physical Disab (<65),CHC ADULT FULLY FUNDED,FAIRWINDS HEALTH CARE LTD,29751709," 27,881.50 "
Department of Health,NHS Sheffield CCG,30/11/2019,Cont Care-Physical Disab (<65),CHC ADULT FULLY FUNDED,ROSEBERRY CARE CENTRES,29751712," 40,098.19 "
Department of Health,NHS Sheffield CCG,30/11/2019,Cont Care-Physical Disab (<65),CHC ADULT FULLY FUNDED,LOXLEY HEALTH CARE LTD,29751715," 68,641.77 "
Department of Health,NHS Sheffield CCG,30/11/2019,Cont Care-Physical Disab (<65),CHC ADULT FULLY FUNDED,ROSEBERRY CARE CENTRES,29751719," 50,870.56 "
Department of Health,NHS Sheffield CCG,30/11/2019,Cont Care-Physical Disab (<65),CHC ADULT FULLY FUNDED,WILLOWBECK HEALTH CARE LTD,29751727," 174,047.66 "
Department of Health,NHS Sheffield CCG,30/11/2019,Cont Care-Physical Disab (<65),CHC ADULT FULLY FUNDED,HORIZON CARE HOMES LTD,29751728," 40,900.64 "
Department of Health,NHS Sheffield CCG,30/11/2019,Cont Care-Physical Disab (<65),CHC ADULT FULLY FUNDED,HORIZON CARE HOMES LTD,29751734," 33,957.56 "
Department of Health,NHS Sheffield CCG,30/11/2019,Cont Care-Physical Disab (<65),CHC ADULT FULLY FUNDED,HORIZON CARE HOMES LTD,29751735," 28,547.51 "
Department of Health,NHS Sheffield CCG,30/11/2019,C&M-APMS DES Minor Surgery,PRC DELEGATED CO-COMMISSIONING,AVENUE MEDICAL CENTRE SHEFFIELD,29767005," 1,020.00 "
Department of Health,NHS Sheffield CCG,30/11/2019,C&M-PMS Contract Value,PRC DELEGATED CO-COMMISSIONING,AVENUE MEDICAL CENTRE SHEFFIELD,29767005," 55,258.07 "
Department of Health,NHS Sheffield CCG,30/11/2019,C&M-PMS DES Minor Surgery,PRC DELEGATED CO-COMMISSIONING,AVENUE MEDICAL CENTRE SHEFFIELD,29767005, 945.00 
Department of Health,NHS Sheffield CCG,30/11/2019,C&M-PMS Out of Hours Opt Outs,PRC DELEGATED CO-COMMISSIONING,AVENUE MEDICAL CENTRE SHEFFIELD,29767005, 10.28 
Department of Health,NHS Sheffield CCG,30/11/2019,C&M-PMS PCN DES Participation,PRC DELEGATED CO-COMMISSIONING,AVENUE MEDICAL CENTRE SHEFFIELD,29767005," 1,058.32 "
Department of Health,NHS Sheffield CCG,30/11/2019,C&M-PMS PCO Other,PRC DELEGATED CO-COMMISSIONING,AVENUE MEDICAL CENTRE SHEFFIELD,29767005, 460.30 
Department of Health,NHS Sheffield CCG,30/11/2019,C&M-PMS Prem Notional Rent,PRC DELEGATED CO-COMMISSIONING,AVENUE MEDICAL CENTRE SHEFFIELD,29767005," 5,546.67 "
Department of Health,NHS Sheffield CCG,30/11/2019,C&M-PMS Prem Rates,PRC DELEGATED CO-COMMISSIONING,AVENUE MEDICAL CENTRE SHEFFIELD,29767005," 1,264.00 "
Department of Health,NHS Sheffield CCG,30/11/2019,C&M-PMS QOF Aspiration,PRC DELEGATED CO-COMMISSIONING,AVENUE MEDICAL CENTRE SHEFFIELD,29767005," 5,847.72 "
Department of Health,NHS Sheffield CCG,30/11/2019,C&M-APMS DES Minor Surgery,PRC DELEGATED CO-COMMISSIONING,BURNGREAVE SURGERY,29767006, 815.00 
Department of Health,NHS Sheffield CCG,30/11/2019,C&M-PMS Contract Value,PRC DELEGATED CO-COMMISSIONING,BURNGREAVE SURGERY,29767006," 57,667.27 "
Department of Health,NHS Sheffield CCG,30/11/2019,C&M-PMS DES Minor Surgery,PRC DELEGATED CO-COMMISSIONING,BURNGREAVE SURGERY,29767006," 1,865.00 "
Department of Health,NHS Sheffield CCG,30/11/2019,C&M-PMS Out of Hours Opt Outs,PRC DELEGATED CO-COMMISSIONING,BURNGREAVE SURGERY,29767006, 6.70 
Department of Health,NHS Sheffield CCG,30/11/2019,C&M-PMS PCN DES Participation,PRC DELEGATED CO-COMMISSIONING,BURNGREAVE SURGERY,29767006," 1,088.98 "
Department of Health,NHS Sheffield CCG,30/11/2019,C&M-PMS Prem Notional Rent,PRC DELEGATED CO-COMMISSIONING,BURNGREAVE SURGERY,29767006," 6,622.92 "
Department of Health,NHS Sheffield CCG,30/11/2019,C&M-PMS Prem Rates,PRC DELEGATED CO-COMMISSIONING,BURNGREAVE SURGERY,29767006," 2,140.00 "
Department of Health,NHS Sheffield CCG,30/11/2019,C&M-PMS QOF Aspiration,PRC DELEGATED CO-COMMISSIONING,BURNGREAVE SURGERY,29767006," 5,288.96 "
Department of Health,NHS Sheffield CCG,30/11/2019,C&M-APMS DES Minor Surgery,PRC DELEGATED CO-COMMISSIONING,PORTER BROOK MEDICAL CENTRE,29767007," 3,690.00 "
Department of Health,NHS Sheffield CCG,30/11/2019,C&M-PMS Contract Value,PRC DELEGATED CO-COMMISSIONING,PORTER BROOK MEDICAL CENTRE,29767007," 185,328.18 "
Department of Health,NHS Sheffield CCG,30/11/2019,C&M-PMS DES Minor Surgery,PRC DELEGATED CO-COMMISSIONING,PORTER BROOK MEDICAL CENTRE,29767007," 6,480.00 "
Department of Health,NHS Sheffield CCG,30/11/2019,C&M-PMS Out of Hours Opt Outs,PRC DELEGATED CO-COMMISSIONING,PORTER BROOK MEDICAL CENTRE,29767007, 295.37 
Department of Health,NHS Sheffield CCG,30/11/2019,C&M-PMS PCN DES Participation,PRC DELEGATED CO-COMMISSIONING,PORTER BROOK MEDICAL CENTRE,29767007," 3,163.47 "
Department of Health,NHS Sheffield CCG,30/11/2019,C&M-PMS PCO Locum Adop/Pat/Mat,PRC DELEGATED CO-COMMISSIONING,PORTER BROOK MEDICAL CENTRE,29767007," 14,797.78 "
Department of Health,NHS Sheffield CCG,30/11/2019,C&M-PMS PCO Other,PRC DELEGATED CO-COMMISSIONING,PORTER BROOK MEDICAL CENTRE,29767007," 1,730.30 "
Department of Health,NHS Sheffield CCG,30/11/2019,C&M-PMS Prem Actual Rent,PRC DELEGATED CO-COMMISSIONING,PORTER BROOK MEDICAL CENTRE,29767007," 1,333.33 "
Department of Health,NHS Sheffield CCG,30/11/2019,C&M-PMS Prem Notional Rent,PRC DELEGATED CO-COMMISSIONING,PORTER BROOK MEDICAL CENTRE,29767007," 9,666.67 "
Department of Health,NHS Sheffield CCG,30/11/2019,C&M-PMS Prem Rates,PRC DELEGATED CO-COMMISSIONING,PORTER BROOK MEDICAL CENTRE,29767007," 2,271.00 "
Department of Health,NHS Sheffield CCG,30/11/2019,C&M-PMS QOF Aspiration,PRC DELEGATED CO-COMMISSIONING,PORTER BROOK MEDICAL CENTRE,29767007," 8,838.31 "
Department of Health,NHS Sheffield CCG,30/11/2019,C&M-PMS Contract Value,PRC DELEGATED CO-COMMISSIONING,WOODHOUSE HEALTH CENTRE,29767008," 102,145.88 "
Department of Health,NHS Sheffield CCG,30/11/2019,C&M-PMS DES Minor Surgery,PRC DELEGATED CO-COMMISSIONING,WOODHOUSE HEALTH CENTRE,29767008," 2,120.00 "
Department of Health,NHS Sheffield CCG,30/11/2019,C&M-PMS Out of Hours Opt Outs,PRC DELEGATED CO-COMMISSIONING,WOODHOUSE HEALTH CENTRE,29767008, 8.54 
Department of Health,NHS Sheffield CCG,30/11/2019,C&M-PMS PCN DES Participation,PRC DELEGATED CO-COMMISSIONING,WOODHOUSE HEALTH CENTRE,29767008," 1,906.58 "
Department of Health,NHS Sheffield CCG,30/11/2019,C&M-PMS PCO Other,PRC DELEGATED CO-COMMISSIONING,WOODHOUSE HEALTH CENTRE,29767008, 746.40 
Department of Health,NHS Sheffield CCG,30/11/2019,C&M-PMS Prem Notional Rent,PRC DELEGATED CO-COMMISSIONING,WOODHOUSE HEALTH CENTRE,29767008," 6,338.58 "
Department of Health,NHS Sheffield CCG,30/11/2019,C&M-PMS Prem Rates,PRC DELEGATED CO-COMMISSIONING,WOODHOUSE HEALTH CENTRE,29767008," 1,757.00 "
Department of Health,NHS Sheffield CCG,30/11/2019,C&M-PMS QOF Aspiration,PRC DELEGATED CO-COMMISSIONING,WOODHOUSE HEALTH CENTRE,29767008," 13,912.30 "
Department of Health,NHS Sheffield CCG,30/11/2019,C&M-PMS Contract Value,PRC DELEGATED CO-COMMISSIONING,WINCOBANK MEDICAL CENTRE,29767009,-319.42 
Department of Health,NHS Sheffield CCG,30/11/2019,C&M-PMS GP Statutory Levy,PRC DELEGATED CO-COMMISSIONING,WINCOBANK MEDICAL CENTRE,29767009,-269.68 
Department of Health,NHS Sheffield CCG,30/11/2019,C&M-PMS Out of Hours Opt Outs,PRC DELEGATED CO-COMMISSIONING,WINCOBANK MEDICAL CENTRE,29767009,"-2,986.31 "
Department of Health,NHS Sheffield CCG,30/11/2019,Clinical&Medical-Independent Sector,ACUTE COMMISSIONING,CLAREMONT HOSPITAL,29772292," 66,095.00 "
Department of Health,NHS Sheffield CCG,30/11/2019,Cont Care-Physical Disab (<65),CHC ADULT FULLY FUNDED,VALORUM CARE LTD,29772314," 77,199.96 "
Department of Health,NHS Sheffield CCG,30/11/2019,Hcare Srv Rec Fdtn Trust-Contract Baseline,ACUTE COMMISSIONING,SHEFFIELD TEACHING HOSPITALS NHS FOUNDATION TRUST,29791282," 578,145.00 "
Department of Health,NHS Sheffield CCG,30/11/2019,C&M-APMS DES Extended Hours Access,GP FORWARD VIEW,PRIMARY CARE SHEFFIELD LTD,29791293," 295,941.67 "
Department of Health,NHS Sheffield CCG,30/11/2019,Hcare Srv Rec Fdtn Trust-Contract Baseline,ACUTE COMMISSIONING,DONCASTER AND BASSETLAW HOSPITALS NHS FOUNDATION TRUST,29810197," 44,305.00 "
Department of Health,NHS Sheffield CCG,30/11/2019,Hcare Srv Rec Fdtn Trust-Contract Baseline,MENTAL HEALTH CONTRACTS,ROTHERHAM DONCASTER AND SOUTH HUMBER NHS FOUNDATION TRUST,29810198," 25,487.95 "
Department of Health,NHS Sheffield CCG,30/11/2019,C&M-GMS LES Translation Fees,INTERPRETING SERVICES,LANGUAGELINE SOLUTIONS,29853320," 50,746.44 "
Department of Health,NHS Sheffield CCG,30/11/2019,Hcare Srv Rec Fdtn Trust-Contract Baseline,ACUTE CHILDRENS SERVICES,SHEFFIELD CHILDRENS NHS FOUNDATION TRUST,29853324," 3,387,974.00 "
Department of Health,NHS Sheffield CCG,30/11/2019,C&M-GMS LES Translation Fees,INTERPRETING SERVICES,LANGUAGELINE SOLUTIONS,29877458," 30,495.60 "
Department of Health,NHS Sheffield CCG,30/11/2019,C&M-GMS IT Comm Servs -GP Practices,PRIMARY CARE IT,BT GLOBAL SERVICES,29877786," 25,083.50 "
Department of Health,NHS Sheffield CCG,30/11/2019,Computer Software/License,CORPORATE COSTS & SERVICES,BT GLOBAL SERVICES,29877786," 4,442.76 "
Department of Health,NHS Sheffield CCG,30/11/2019,C&M-OES Childrens Schemes,LOCAL ENHANCED SERVICES,PRIMARY EYECARE SERVICES LTD,29893229, 300.00 
Department of Health,NHS Sheffield CCG,30/11/2019,C&M-OES Glaucoma,LOCAL ENHANCED SERVICES,PRIMARY EYECARE SERVICES LTD,29893229," 1,040.00 "
Department of Health,NHS Sheffield CCG,30/11/2019,C&M-OES Intra-ocular Ocular Hypertn,LOCAL ENHANCED SERVICES,PRIMARY EYECARE SERVICES LTD,29893229, 680.00 
Department of Health,NHS Sheffield CCG,30/11/2019,C&M-OES PEARS,LOCAL ENHANCED SERVICES,PRIMARY EYECARE SERVICES LTD,29893229," 29,784.00 "
Department of Health,NHS Sheffield CCG,30/11/2019,C&M-GMS IT Comm Servs -GP Practices,PRIMARY CARE IT,KIER BUSINESS SERVICES LTD,29921900," 100,250.40 "
Department of Health,NHS Sheffield CCG,30/11/2019,FM Computer Contracts,BUSINESS INFORMATICS,KIER BUSINESS SERVICES LTD,29921900," 36,085.20 "
Department of Health,NHS Sheffield CCG,30/11/2019,C&M-GMS LES Basket of Procedures,LOCAL ENHANCED SERVICES,PRIMARY CARE SHEFFIELD LTD,29921919," 52,308.33 "
Department of Health,NHS Sheffield CCG,30/11/2019,External Consultancy Fees,MEDICINES MANAGEMENT - CLINICAL,KLI LTD,29928033," 119,550.00 "
Department of Health,NHS Sheffield CCG,30/11/2019,Clinical&Medical-Independent Sector,ACUTE COMMISSIONING,SPAMEDICA LTD,29928070," 126,772.15 "
Department of Health,NHS Sheffield CCG,30/11/2019,Cont Care-Physical Disab (65+),CHC ADULT FULLY FUNDED,SHEFFIELD CITY COUNCIL,29928120," 740,811.95 "
Department of Health,NHS Sheffield CCG,30/11/2019,legal fees,FINANCE,JONES CHASE EMPLOYMENT LAWYERS,29930607," 22,500.00 "
Department of Health,NHS Sheffield CCG,30/11/2019,C&M-GMS GP Statutory Levy,PRC DELEGATED CO-COMMISSIONING,BASLOW ROAD & SHOREHAM STREET SURGERIES,29951490,-442.44 
Department of Health,NHS Sheffield CCG,30/11/2019,C&M-GMS Cost of Drugs -Prescribing,LOCAL ENHANCED SERVICES,BASLOW ROAD & SHOREHAM STREET SURGERIES,29951491," 1,588.17 "
Department of Health,NHS Sheffield CCG,30/11/2019,C&M-GMS DES Learn Dsblty Hlth Chk,PRC DELEGATED CO-COMMISSIONING,BASLOW ROAD & SHOREHAM STREET SURGERIES,29951491, 700.00 
Department of Health,NHS Sheffield CCG,30/11/2019,C&M-GMS Global Sum,PRC DELEGATED CO-COMMISSIONING,BASLOW ROAD & SHOREHAM STREET SURGERIES,29951491," 98,044.33 "
Department of Health,NHS Sheffield CCG,30/11/2019,C&M-GMS MPIG Correction Factor,PRC DELEGATED CO-COMMISSIONING,BASLOW ROAD & SHOREHAM STREET SURGERIES,29951491, 146.21 
Department of Health,NHS Sheffield CCG,30/11/2019,C&M-GMS PCN DES Participation,PRC DELEGATED CO-COMMISSIONING,BASLOW ROAD & SHOREHAM STREET SURGERIES,29951491," 2,012.54 "
Department of Health,NHS Sheffield CCG,30/11/2019,C&M-GMS Prem Notional Rent,PRC DELEGATED CO-COMMISSIONING,BASLOW ROAD & SHOREHAM STREET SURGERIES,29951491," 8,222.71 "
Department of Health,NHS Sheffield CCG,30/11/2019,C&M-GMS Prem Rates,PRC DELEGATED CO-COMMISSIONING,BASLOW ROAD & SHOREHAM STREET SURGERIES,29951491," 2,421.00 "
Department of Health,NHS Sheffield CCG,30/11/2019,C&M-GMS Prof Fees Prescribing,PRC DELEGATED CO-COMMISSIONING,BASLOW ROAD & SHOREHAM STREET SURGERIES,29951491, 202.03 
Department of Health,NHS Sheffield CCG,30/11/2019,C&M-GMS QOF Aspiration,PRC DELEGATED CO-COMMISSIONING,BASLOW ROAD & SHOREHAM STREET SURGERIES,29951491," 10,278.96 "
Department of Health,NHS Sheffield CCG,30/11/2019,C&M-GMS Cost of Drugs -Prescribing,LOCAL ENHANCED SERVICES,BUCHANAN ROAD SURGERY,29951494, 410.00 
Department of Health,NHS Sheffield CCG,30/11/2019,C&M-GMS Global Sum,PRC DELEGATED CO-COMMISSIONING,BUCHANAN ROAD SURGERY,29951494," 36,144.41 "
Department of Health,NHS Sheffield CCG,30/11/2019,C&M-GMS MPIG Correction Factor,PRC DELEGATED CO-COMMISSIONING,BUCHANAN ROAD SURGERY,29951494, 655.25 
Department of Health,NHS Sheffield CCG,30/11/2019,C&M-GMS PCN DES Participation,PRC DELEGATED CO-COMMISSIONING,BUCHANAN ROAD SURGERY,29951494, 736.41 
Department of Health,NHS Sheffield CCG,30/11/2019,C&M-GMS Prem Notional Rent,PRC DELEGATED CO-COMMISSIONING,BUCHANAN ROAD SURGERY,29951494," 2,595.83 "
Department of Health,NHS Sheffield CCG,30/11/2019,C&M-GMS Prem Rates,PRC DELEGATED CO-COMMISSIONING,BUCHANAN ROAD SURGERY,29951494, 884.00 
Department of Health,NHS Sheffield CCG,30/11/2019,C&M-GMS Prof Fees Prescribing,PRC DELEGATED CO-COMMISSIONING,BUCHANAN ROAD SURGERY,29951494, 72.16 
Department of Health,NHS Sheffield CCG,30/11/2019,C&M-GMS QOF Aspiration,PRC DELEGATED CO-COMMISSIONING,BUCHANAN ROAD SURGERY,29951494," 4,303.24 "
Department of Health,NHS Sheffield CCG,30/11/2019,C&M-GMS Cost of Drugs -Prescribing,LOCAL ENHANCED SERVICES,BROOMHILL SURGERY,29951498," 2,696.56 "
Department of Health,NHS Sheffield CCG,30/11/2019,C&M-GMS DES Learn Dsblty Hlth Chk,PRC DELEGATED CO-COMMISSIONING,BROOMHILL SURGERY,29951498, 232.00 
Department of Health,NHS Sheffield CCG,30/11/2019,C&M-GMS Global Sum,PRC DELEGATED CO-COMMISSIONING,BROOMHILL SURGERY,29951498," 65,079.91 "
Department of Health,NHS Sheffield CCG,30/11/2019,C&M-GMS MPIG Correction Factor,PRC DELEGATED CO-COMMISSIONING,BROOMHILL SURGERY,29951498, 251.00 
Department of Health,NHS Sheffield CCG,30/11/2019,C&M-GMS PCN DES Participation,PRC DELEGATED CO-COMMISSIONING,BROOMHILL SURGERY,29951498," 1,318.50 "
Department of Health,NHS Sheffield CCG,30/11/2019,C&M-GMS Prem Cost Rent,PRC DELEGATED CO-COMMISSIONING,BROOMHILL SURGERY,29951498," 2,413.75 "
Department of Health,NHS Sheffield CCG,30/11/2019,C&M-GMS Prem Notional Rent,PRC DELEGATED CO-COMMISSIONING,BROOMHILL SURGERY,29951498," 2,612.50 "
Department of Health,NHS Sheffield CCG,30/11/2019,C&M-GMS Prem Rates,PRC DELEGATED CO-COMMISSIONING,BROOMHILL SURGERY,29951498," 1,891.00 "
Department of Health,NHS Sheffield CCG,30/11/2019,C&M-GMS Prof Fees Prescribing,PRC DELEGATED CO-COMMISSIONING,BROOMHILL SURGERY,29951498, 125.08 
Department of Health,NHS Sheffield CCG,30/11/2019,C&M-GMS QOF Aspiration,PRC DELEGATED CO-COMMISSIONING,BROOMHILL SURGERY,29951498," 6,211.39 "
Department of Health,NHS Sheffield CCG,30/11/2019,C&M-GMS Cost of Drugs -Prescribing,LOCAL ENHANCED SERVICES,CHARNOCK HEALTH PRIMARY CARE CENTRE,29951500," 8,897.88 "
Department of Health,NHS Sheffield CCG,30/11/2019,C&M-GMS Global Sum,PRC DELEGATED CO-COMMISSIONING,CHARNOCK HEALTH PRIMARY CARE CENTRE,29951500," 43,644.95 "
Department of Health,NHS Sheffield CCG,30/11/2019,C&M-GMS MPIG Correction Factor,PRC DELEGATED CO-COMMISSIONING,CHARNOCK HEALTH PRIMARY CARE CENTRE,29951500, 206.62 
Department of Health,NHS Sheffield CCG,30/11/2019,C&M-GMS PCN DES Participation,PRC DELEGATED CO-COMMISSIONING,CHARNOCK HEALTH PRIMARY CARE CENTRE,29951500, 869.33 
Department of Health,NHS Sheffield CCG,30/11/2019,C&M-GMS PCO Other,PRC DELEGATED CO-COMMISSIONING,CHARNOCK HEALTH PRIMARY CARE CENTRE,29951500, 363.80 
Department of Health,NHS Sheffield CCG,30/11/2019,C&M-GMS Prem Notional Rent,PRC DELEGATED CO-COMMISSIONING,CHARNOCK HEALTH PRIMARY CARE CENTRE,29951500, 335.00 
Department of Health,NHS Sheffield CCG,30/11/2019,C&M-GMS Prem Rates,PRC DELEGATED CO-COMMISSIONING,CHARNOCK HEALTH PRIMARY CARE CENTRE,29951500," 1,547.00 "
Department of Health,NHS Sheffield CCG,30/11/2019,C&M-GMS Prof Fees Prescribing,PRC DELEGATED CO-COMMISSIONING,CHARNOCK HEALTH PRIMARY CARE CENTRE,29951500," 1,871.10 "
Department of Health,NHS Sheffield CCG,30/11/2019,C&M-GMS QOF Aspiration,PRC DELEGATED CO-COMMISSIONING,CHARNOCK HEALTH PRIMARY CARE CENTRE,29951500," 4,932.79 "
Department of Health,NHS Sheffield CCG,30/11/2019,C&M-GMS Cost of Drugs -Prescribing,LOCAL ENHANCED SERVICES,CARTERKNOWLE & DORE MEDICAL PRACTICE,29951502," 6,633.56 "
Department of Health,NHS Sheffield CCG,30/11/2019,C&M-GMS Global Sum,PRC DELEGATED CO-COMMISSIONING,CARTERKNOWLE & DORE MEDICAL PRACTICE,29951502," 85,300.87 "
Department of Health,NHS Sheffield CCG,30/11/2019,C&M-GMS MPIG Correction Factor,PRC DELEGATED CO-COMMISSIONING,CARTERKNOWLE & DORE MEDICAL PRACTICE,29951502, 747.29 
Department of Health,NHS Sheffield CCG,30/11/2019,C&M-GMS PCN DES Participation,PRC DELEGATED CO-COMMISSIONING,CARTERKNOWLE & DORE MEDICAL PRACTICE,29951502," 1,742.96 "
Department of Health,NHS Sheffield CCG,30/11/2019,C&M-GMS Prem Notional Rent,PRC DELEGATED CO-COMMISSIONING,CARTERKNOWLE & DORE MEDICAL PRACTICE,29951502," 7,596.50 "
Department of Health,NHS Sheffield CCG,30/11/2019,C&M-GMS Prem Rates,PRC DELEGATED CO-COMMISSIONING,CARTERKNOWLE & DORE MEDICAL PRACTICE,29951502," 1,961.00 "
Department of Health,NHS Sheffield CCG,30/11/2019,C&M-GMS Prof Fees Prescribing,PRC DELEGATED CO-COMMISSIONING,CARTERKNOWLE & DORE MEDICAL PRACTICE,29951502," 1,038.96 "
Department of Health,NHS Sheffield CCG,30/11/2019,C&M-GMS QOF Aspiration,PRC DELEGATED CO-COMMISSIONING,CARTERKNOWLE & DORE MEDICAL PRACTICE,29951502," 10,055.02 "
Department of Health,NHS Sheffield CCG,30/11/2019,C&M-GMS Cost of Drugs -Prescribing,LOCAL ENHANCED SERVICES,CROOKES PRACTICE,29951507, 875.94 
Department of Health,NHS Sheffield CCG,30/11/2019,C&M-GMS Global Sum,PRC DELEGATED CO-COMMISSIONING,CROOKES PRACTICE,29951507," 51,584.27 "
Department of Health,NHS Sheffield CCG,30/11/2019,C&M-GMS MPIG Correction Factor,PRC DELEGATED CO-COMMISSIONING,CROOKES PRACTICE,29951507, 772.96 
Department of Health,NHS Sheffield CCG,30/11/2019,C&M-GMS PCN DES Participation,PRC DELEGATED CO-COMMISSIONING,CROOKES PRACTICE,29951507," 1,040.55 "
Department of Health,NHS Sheffield CCG,30/11/2019,C&M-GMS PCO Other,PRC DELEGATED CO-COMMISSIONING,CROOKES PRACTICE,29951507, 512.60 
Department of Health,NHS Sheffield CCG,30/11/2019,C&M-GMS Prem Notional Rent,PRC DELEGATED CO-COMMISSIONING,CROOKES PRACTICE,29951507," 3,874.67 "
Department of Health,NHS Sheffield CCG,30/11/2019,C&M-GMS Prem Rates,PRC DELEGATED CO-COMMISSIONING,CROOKES PRACTICE,29951507," 1,510.00 "
Department of Health,NHS Sheffield CCG,30/11/2019,C&M-GMS Prof Fees Prescribing,PRC DELEGATED CO-COMMISSIONING,CROOKES PRACTICE,29951507, 194.81 
Department of Health,NHS Sheffield CCG,30/11/2019,C&M-GMS QOF Aspiration,PRC DELEGATED CO-COMMISSIONING,CROOKES PRACTICE,29951507," 4,885.77 "
Department of Health,NHS Sheffield CCG,30/11/2019,C&M-GMS Cost of Drugs -Prescribing,LOCAL ENHANCED SERVICES,DEVONSHIRE GREEN MEDICAL CENTRE,29951510, 386.98 
Department of Health,NHS Sheffield CCG,30/11/2019,C&M-GMS DES Extended Hours Access,PRC DELEGATED CO-COMMISSIONING,DEVONSHIRE GREEN MEDICAL CENTRE,29951510," 6,816.36 "
Department of Health,NHS Sheffield CCG,30/11/2019,C&M-GMS Global Sum,PRC DELEGATED CO-COMMISSIONING,DEVONSHIRE GREEN MEDICAL CENTRE,29951510," 46,282.67 "
Department of Health,NHS Sheffield CCG,30/11/2019,C&M-GMS MPIG Correction Factor,PRC DELEGATED CO-COMMISSIONING,DEVONSHIRE GREEN MEDICAL CENTRE,29951510," 1,615.60 "
Department of Health,NHS Sheffield CCG,30/11/2019,C&M-GMS PCN DES Clinical Director,PRC DELEGATED CO-COMMISSIONING,DEVONSHIRE GREEN MEDICAL CENTRE,29951510," 3,188.00 "
Department of Health,NHS Sheffield CCG,30/11/2019,C&M-GMS PCN DES PCN support,LOCAL ENHANCED SERVICES,DEVONSHIRE GREEN MEDICAL CENTRE,29951510," 6,977.63 "
Department of Health,NHS Sheffield CCG,30/11/2019,C&M-GMS PCN DES Participation,PRC DELEGATED CO-COMMISSIONING,DEVONSHIRE GREEN MEDICAL CENTRE,29951510, 931.75 
Department of Health,NHS Sheffield CCG,30/11/2019,C&M-GMS Prem Notional Rent,PRC DELEGATED CO-COMMISSIONING,DEVONSHIRE GREEN MEDICAL CENTRE,29951510," 5,987.50 "
Department of Health,NHS Sheffield CCG,30/11/2019,C&M-GMS Prem Rates,PRC DELEGATED CO-COMMISSIONING,DEVONSHIRE GREEN MEDICAL CENTRE,29951510, 975.00 
Department of Health,NHS Sheffield CCG,30/11/2019,C&M-GMS Prof Fees Prescribing,PRC DELEGATED CO-COMMISSIONING,DEVONSHIRE GREEN MEDICAL CENTRE,29951510, 84.19 
Department of Health,NHS Sheffield CCG,30/11/2019,C&M-GMS QOF Aspiration,PRC DELEGATED CO-COMMISSIONING,DEVONSHIRE GREEN MEDICAL CENTRE,29951510," 4,805.68 "
Department of Health,NHS Sheffield CCG,30/11/2019,C&M-GMS Cost of Drugs -Prescribing,LOCAL ENHANCED SERVICES,ELM LANE SURGERY,29951514," 4,470.84 "
Department of Health,NHS Sheffield CCG,30/11/2019,C&M-GMS Global Sum,PRC DELEGATED CO-COMMISSIONING,ELM LANE SURGERY,29951514," 41,569.36 "
Department of Health,NHS Sheffield CCG,30/11/2019,C&M-GMS MPIG Correction Factor,PRC DELEGATED CO-COMMISSIONING,ELM LANE SURGERY,29951514, 419.26 
Department of Health,NHS Sheffield CCG,30/11/2019,C&M-GMS PCN DES Participation,PRC DELEGATED CO-COMMISSIONING,ELM LANE SURGERY,29951514, 821.44 
Department of Health,NHS Sheffield CCG,30/11/2019,C&M-GMS Prem Notional Rent,PRC DELEGATED CO-COMMISSIONING,ELM LANE SURGERY,29951514," 5,305.50 "
Department of Health,NHS Sheffield CCG,30/11/2019,C&M-GMS Prof Fees Prescribing,PRC DELEGATED CO-COMMISSIONING,ELM LANE SURGERY,29951514, 791.25 
Department of Health,NHS Sheffield CCG,30/11/2019,C&M-GMS QOF Aspiration,PRC DELEGATED CO-COMMISSIONING,ELM LANE SURGERY,29951514," 4,720.25 "
Department of Health,NHS Sheffield CCG,30/11/2019,C&M-GMS Cost of Drugs -Prescribing,LOCAL ENHANCED SERVICES,DUKE MEDICAL CENTRE,29951516," 3,582.44 "
Department of Health,NHS Sheffield CCG,30/11/2019,C&M-GMS Global Sum,PRC DELEGATED CO-COMMISSIONING,DUKE MEDICAL CENTRE,29951516," 59,187.06 "
Department of Health,NHS Sheffield CCG,30/11/2019,C&M-GMS MPIG Correction Factor,PRC DELEGATED CO-COMMISSIONING,DUKE MEDICAL CENTRE,29951516, 306.25 
Department of Health,NHS Sheffield CCG,30/11/2019,C&M-GMS PCN DES Participation,PRC DELEGATED CO-COMMISSIONING,DUKE MEDICAL CENTRE,29951516," 1,138.79 "
Department of Health,NHS Sheffield CCG,30/11/2019,C&M-GMS PCO Other,PRC DELEGATED CO-COMMISSIONING,DUKE MEDICAL CENTRE,29951516, 458.30 
Department of Health,NHS Sheffield CCG,30/11/2019,C&M-GMS Prem Notional Rent,PRC DELEGATED CO-COMMISSIONING,DUKE MEDICAL CENTRE,29951516," 5,721.67 "
Department of Health,NHS Sheffield CCG,30/11/2019,C&M-GMS Prem Rates,PRC DELEGATED CO-COMMISSIONING,DUKE MEDICAL CENTRE,29951516," 1,311.00 "
Department of Health,NHS Sheffield CCG,30/11/2019,C&M-GMS Prof Fees Prescribing,PRC DELEGATED CO-COMMISSIONING,DUKE MEDICAL CENTRE,29951516, 815.31 
Department of Health,NHS Sheffield CCG,30/11/2019,C&M-GMS QOF Aspiration,PRC DELEGATED CO-COMMISSIONING,DUKE MEDICAL CENTRE,29951516," 5,166.69 "
Department of Health,NHS Sheffield CCG,30/11/2019,C&M-GMS Cost of Drugs -Prescribing,LOCAL ENHANCED SERVICES,FAR LANE MEDICAL CENTRE,29951523, 131.63 
Department of Health,NHS Sheffield CCG,30/11/2019,C&M-GMS Global Sum,PRC DELEGATED CO-COMMISSIONING,FAR LANE MEDICAL CENTRE,29951523," 55,822.86 "
Department of Health,NHS Sheffield CCG,30/11/2019,C&M-GMS PCN DES Participation,PRC DELEGATED CO-COMMISSIONING,FAR LANE MEDICAL CENTRE,29951523," 1,138.48 "
Department of Health,NHS Sheffield CCG,30/11/2019,C&M-GMS PCO Other,PRC DELEGATED CO-COMMISSIONING,FAR LANE MEDICAL CENTRE,29951523, 462.30 
Department of Health,NHS Sheffield CCG,30/11/2019,C&M-GMS Prem Notional Rent,PRC DELEGATED CO-COMMISSIONING,FAR LANE MEDICAL CENTRE,29951523," 3,462.50 "
Department of Health,NHS Sheffield CCG,30/11/2019,C&M-GMS Prem Rates,PRC DELEGATED CO-COMMISSIONING,FAR LANE MEDICAL CENTRE,29951523," 1,184.00 "
Department of Health,NHS Sheffield CCG,30/11/2019,C&M-GMS Prof Fees Prescribing,PRC DELEGATED CO-COMMISSIONING,FAR LANE MEDICAL CENTRE,29951523, 40.89 
Department of Health,NHS Sheffield CCG,30/11/2019,C&M-GMS QOF Aspiration,PRC DELEGATED CO-COMMISSIONING,FAR LANE MEDICAL CENTRE,29951523," 5,719.80 "
Department of Health,NHS Sheffield CCG,30/11/2019,C&M-GMS Global Sum,PRC DELEGATED CO-COMMISSIONING,HAROLD STREET MEDICAL CENTRE,29951526," 19,882.84 "
Department of Health,NHS Sheffield CCG,30/11/2019,C&M-GMS PCN DES Participation,PRC DELEGATED CO-COMMISSIONING,HAROLD STREET MEDICAL CENTRE,29951526, 432.48 
Department of Health,NHS Sheffield CCG,30/11/2019,C&M-GMS PCO Other,PRC DELEGATED CO-COMMISSIONING,HAROLD STREET MEDICAL CENTRE,29951526, 233.00 
Department of Health,NHS Sheffield CCG,30/11/2019,C&M-GMS Prem Notional Rent,PRC DELEGATED CO-COMMISSIONING,HAROLD STREET MEDICAL CENTRE,29951526," 2,337.50 "
Department of Health,NHS Sheffield CCG,30/11/2019,C&M-GMS QOF Aspiration,PRC DELEGATED CO-COMMISSIONING,HAROLD STREET MEDICAL CENTRE,29951526," 2,228.59 "
Department of Health,NHS Sheffield CCG,30/11/2019,C&M-GMS Cost of Drugs -Prescribing,LOCAL ENHANCED SERVICES,HANDSWORTH MEDICAL PRACTICE SHEFFIELD,29951529," 7,160.82 "
Department of Health,NHS Sheffield CCG,30/11/2019,C&M-GMS Global Sum,PRC DELEGATED CO-COMMISSIONING,HANDSWORTH MEDICAL PRACTICE SHEFFIELD,29951529," 77,964.76 "
Department of Health,NHS Sheffield CCG,30/11/2019,C&M-GMS PCN DES Participation,PRC DELEGATED CO-COMMISSIONING,HANDSWORTH MEDICAL PRACTICE SHEFFIELD,29951529," 1,567.06 "
Department of Health,NHS Sheffield CCG,30/11/2019,C&M-GMS PCO Locum Adop/Pat/Mat,PRC DELEGATED CO-COMMISSIONING,HANDSWORTH MEDICAL PRACTICE SHEFFIELD,29951529," 6,405.07 "
Department of Health,NHS Sheffield CCG,30/11/2019,C&M-GMS Prem Notional Rent,PRC DELEGATED CO-COMMISSIONING,HANDSWORTH MEDICAL PRACTICE SHEFFIELD,29951529," 3,321.66 "
Department of Health,NHS Sheffield CCG,30/11/2019,C&M-GMS Prof Fees Prescribing,PRC DELEGATED CO-COMMISSIONING,HANDSWORTH MEDICAL PRACTICE SHEFFIELD,29951529," 1,495.91 "
Department of Health,NHS Sheffield CCG,30/11/2019,C&M-GMS QOF Aspiration,PRC DELEGATED CO-COMMISSIONING,HANDSWORTH MEDICAL PRACTICE SHEFFIELD,29951529," 7,811.29 "
Department of Health,NHS Sheffield CCG,30/11/2019,C&M-GMS Cost of Drugs -Prescribing,LOCAL ENHANCED SERVICES,GRENOSIDE SURGERY,29951531," 2,310.52 "
Department of Health,NHS Sheffield CCG,30/11/2019,C&M-GMS Global Sum,PRC DELEGATED CO-COMMISSIONING,GRENOSIDE SURGERY,29951531," 59,353.17 "
Department of Health,NHS Sheffield CCG,30/11/2019,C&M-GMS PCN DES Participation,PRC DELEGATED CO-COMMISSIONING,GRENOSIDE SURGERY,29951531," 1,190.25 "
Department of Health,NHS Sheffield CCG,30/11/2019,C&M-GMS PCO Other,PRC DELEGATED CO-COMMISSIONING,GRENOSIDE SURGERY,29951531, 475.50 
Department of Health,NHS Sheffield CCG,30/11/2019,C&M-GMS Prem Notional Rent,PRC DELEGATED CO-COMMISSIONING,GRENOSIDE SURGERY,29951531," 8,110.42 "
Department of Health,NHS Sheffield CCG,30/11/2019,C&M-GMS Prem Rates,PRC DELEGATED CO-COMMISSIONING,GRENOSIDE SURGERY,29951531," 2,075.00 "
Department of Health,NHS Sheffield CCG,30/11/2019,C&M-GMS Prem Water Rates,PRC DELEGATED CO-COMMISSIONING,GRENOSIDE SURGERY,29951531, 168.09 
Department of Health,NHS Sheffield CCG,30/11/2019,C&M-GMS Prof Fees Prescribing,PRC DELEGATED CO-COMMISSIONING,GRENOSIDE SURGERY,29951531, 127.47 
Department of Health,NHS Sheffield CCG,30/11/2019,C&M-GMS QOF Aspiration,PRC DELEGATED CO-COMMISSIONING,GRENOSIDE SURGERY,29951531," 5,686.85 "
Department of Health,NHS Sheffield CCG,30/11/2019,C&M-GMS Cost of Drugs -Prescribing,LOCAL ENHANCED SERVICES,GREYSTONES MEDICAL CENTRE,29951532, 168.73 
Department of Health,NHS Sheffield CCG,30/11/2019,C&M-GMS Global Sum,PRC DELEGATED CO-COMMISSIONING,GREYSTONES MEDICAL CENTRE,29951532," 20,082.12 "
Department of Health,NHS Sheffield CCG,30/11/2019,C&M-GMS MPIG Correction Factor,PRC DELEGATED CO-COMMISSIONING,GREYSTONES MEDICAL CENTRE,29951532, 552.23 
Department of Health,NHS Sheffield CCG,30/11/2019,C&M-GMS PCN DES Participation,PRC DELEGATED CO-COMMISSIONING,GREYSTONES MEDICAL CENTRE,29951532, 405.94 
Department of Health,NHS Sheffield CCG,30/11/2019,C&M-GMS PCO Other,PRC DELEGATED CO-COMMISSIONING,GREYSTONES MEDICAL CENTRE,29951532, 263.10 
Department of Health,NHS Sheffield CCG,30/11/2019,C&M-GMS Prem Notional Rent,PRC DELEGATED CO-COMMISSIONING,GREYSTONES MEDICAL CENTRE,29951532," 2,885.42 "
Department of Health,NHS Sheffield CCG,30/11/2019,C&M-GMS Prem Rates,PRC DELEGATED CO-COMMISSIONING,GREYSTONES MEDICAL CENTRE,29951532, 606.00 
Department of Health,NHS Sheffield CCG,30/11/2019,C&M-GMS Prof Fees Prescribing,PRC DELEGATED CO-COMMISSIONING,GREYSTONES MEDICAL CENTRE,29951532, 26.46 
Department of Health,NHS Sheffield CCG,30/11/2019,C&M-GMS QOF Aspiration,PRC DELEGATED CO-COMMISSIONING,GREYSTONES MEDICAL CENTRE,29951532," 2,314.72 "
Department of Health,NHS Sheffield CCG,30/11/2019,C&M-GMS Cost of Drugs -Prescribing,LOCAL ENHANCED SERVICES,HEELEY GREEN SURGERY,29951534, 950.33 
Department of Health,NHS Sheffield CCG,30/11/2019,C&M-GMS Global Sum,PRC DELEGATED CO-COMMISSIONING,HEELEY GREEN SURGERY,29951534," 42,237.14 "
Department of Health,NHS Sheffield CCG,30/11/2019,C&M-GMS MPIG Correction Factor,PRC DELEGATED CO-COMMISSIONING,HEELEY GREEN SURGERY,29951534, 188.10 
Department of Health,NHS Sheffield CCG,30/11/2019,C&M-GMS PCN DES Participation,PRC DELEGATED CO-COMMISSIONING,HEELEY GREEN SURGERY,29951534, 875.00 
Department of Health,NHS Sheffield CCG,30/11/2019,C&M-GMS Prem Notional Rent,PRC DELEGATED CO-COMMISSIONING,HEELEY GREEN SURGERY,29951534," 3,254.17 "
Department of Health,NHS Sheffield CCG,30/11/2019,C&M-GMS Prem Rates,PRC DELEGATED CO-COMMISSIONING,HEELEY GREEN SURGERY,29951534, 305.00 
Department of Health,NHS Sheffield CCG,30/11/2019,C&M-GMS Prof Fees Prescribing,PRC DELEGATED CO-COMMISSIONING,HEELEY GREEN SURGERY,29951534, 108.25 
Department of Health,NHS Sheffield CCG,30/11/2019,C&M-GMS QOF Aspiration,PRC DELEGATED CO-COMMISSIONING,HEELEY GREEN SURGERY,29951534," 4,709.02 "
Department of Health,NHS Sheffield CCG,30/11/2019,C&M-GMS Cost of Drugs -Prescribing,LOCAL ENHANCED SERVICES,HOLLIES MEDICAL CENTRE,29951536," 1,014.74 "
Department of Health,NHS Sheffield CCG,30/11/2019,C&M-GMS Global Sum,PRC DELEGATED CO-COMMISSIONING,HOLLIES MEDICAL CENTRE,29951536," 61,598.03 "
Department of Health,NHS Sheffield CCG,30/11/2019,C&M-GMS MPIG Correction Factor,PRC DELEGATED CO-COMMISSIONING,HOLLIES MEDICAL CENTRE,29951536, 726.36 
Department of Health,NHS Sheffield CCG,30/11/2019,C&M-GMS PCN DES Participation,PRC DELEGATED CO-COMMISSIONING,HOLLIES MEDICAL CENTRE,29951536," 1,215.60 "
Department of Health,NHS Sheffield CCG,30/11/2019,C&M-GMS Prem Notional Rent,PRC DELEGATED CO-COMMISSIONING,HOLLIES MEDICAL CENTRE,29951536," 3,229.17 "
Department of Health,NHS Sheffield CCG,30/11/2019,C&M-GMS Prof Fees Prescribing,PRC DELEGATED CO-COMMISSIONING,HOLLIES MEDICAL CENTRE,29951536, 151.52 
Department of Health,NHS Sheffield CCG,30/11/2019,C&M-GMS QOF Aspiration,PRC DELEGATED CO-COMMISSIONING,HOLLIES MEDICAL CENTRE,29951536," 6,991.81 "
Department of Health,NHS Sheffield CCG,30/11/2019,C&M-GMS Cost of Drugs -Prescribing,LOCAL ENHANCED SERVICES,HEALTH CARE SURGERY,29951538," 2,196.53 "
Department of Health,NHS Sheffield CCG,30/11/2019,C&M-GMS Global Sum,PRC DELEGATED CO-COMMISSIONING,HEALTH CARE SURGERY,29951538," 37,991.09 "
Department of Health,NHS Sheffield CCG,30/11/2019,C&M-GMS MPIG Correction Factor,PRC DELEGATED CO-COMMISSIONING,HEALTH CARE SURGERY,29951538, 390.01 
Department of Health,NHS Sheffield CCG,30/11/2019,C&M-GMS PCN DES Participation,PRC DELEGATED CO-COMMISSIONING,HEALTH CARE SURGERY,29951538, 796.77 
Department of Health,NHS Sheffield CCG,30/11/2019,C&M-GMS PCO Other,PRC DELEGATED CO-COMMISSIONING,HEALTH CARE SURGERY,29951538, 342.10 
Department of Health,NHS Sheffield CCG,30/11/2019,C&M-GMS Prem Notional Rent,PRC DELEGATED CO-COMMISSIONING,HEALTH CARE SURGERY,29951538," 3,862.50 "
Department of Health,NHS Sheffield CCG,30/11/2019,C&M-GMS Prem Rates,PRC DELEGATED CO-COMMISSIONING,HEALTH CARE SURGERY,29951538, 645.88 
Department of Health,NHS Sheffield CCG,30/11/2019,C&M-GMS Prof Fees Prescribing,PRC DELEGATED CO-COMMISSIONING,HEALTH CARE SURGERY,29951538, 478.60 
Department of Health,NHS Sheffield CCG,30/11/2019,C&M-GMS QOF Aspiration,PRC DELEGATED CO-COMMISSIONING,HEALTH CARE SURGERY,29951538," 4,056.36 "
Department of Health,NHS Sheffield CCG,30/11/2019,C&M-GMS Cost of Drugs -Prescribing,LOCAL ENHANCED SERVICES,MEDICAL CENTRE CRYSTAL PEAKS,29951542," 11,657.31 "
Department of Health,NHS Sheffield CCG,30/11/2019,C&M-GMS Global Sum,PRC DELEGATED CO-COMMISSIONING,MEDICAL CENTRE CRYSTAL PEAKS,29951542," 47,224.00 "
Department of Health,NHS Sheffield CCG,30/11/2019,C&M-GMS MPIG Correction Factor,PRC DELEGATED CO-COMMISSIONING,MEDICAL CENTRE CRYSTAL PEAKS,29951542, 565.67 
Department of Health,NHS Sheffield CCG,30/11/2019,C&M-GMS PCN DES Participation,PRC DELEGATED CO-COMMISSIONING,MEDICAL CENTRE CRYSTAL PEAKS,29951542, 950.00 
Department of Health,NHS Sheffield CCG,30/11/2019,C&M-GMS PCO Other,PRC DELEGATED CO-COMMISSIONING,MEDICAL CENTRE CRYSTAL PEAKS,29951542, 426.60 
Department of Health,NHS Sheffield CCG,30/11/2019,C&M-GMS Prem Notional Rent,PRC DELEGATED CO-COMMISSIONING,MEDICAL CENTRE CRYSTAL PEAKS,29951542, 270.00 
Department of Health,NHS Sheffield CCG,30/11/2019,C&M-GMS Prem Rates,PRC DELEGATED CO-COMMISSIONING,MEDICAL CENTRE CRYSTAL PEAKS,29951542," 1,056.00 "
Department of Health,NHS Sheffield CCG,30/11/2019,C&M-GMS Prof Fees Prescribing,PRC DELEGATED CO-COMMISSIONING,MEDICAL CENTRE CRYSTAL PEAKS,29951542," 2,404.22 "
Department of Health,NHS Sheffield CCG,30/11/2019,C&M-GMS QOF Aspiration,PRC DELEGATED CO-COMMISSIONING,MEDICAL CENTRE CRYSTAL PEAKS,29951542," 6,211.79 "
Department of Health,NHS Sheffield CCG,30/11/2019,C&M-GMS Cost of Drugs -Prescribing,LOCAL ENHANCED SERVICES,MATHEWS PRACTICE,29951546, 264.75 
Department of Health,NHS Sheffield CCG,30/11/2019,C&M-GMS Global Sum,PRC DELEGATED CO-COMMISSIONING,MATHEWS PRACTICE,29951546," 59,004.18 "
Department of Health,NHS Sheffield CCG,30/11/2019,C&M-GMS MPIG Correction Factor,PRC DELEGATED CO-COMMISSIONING,MATHEWS PRACTICE,29951546, 299.48 
Department of Health,NHS Sheffield CCG,30/11/2019,C&M-GMS PCN DES Participation,PRC DELEGATED CO-COMMISSIONING,MATHEWS PRACTICE,29951546," 1,281.64 "
Department of Health,NHS Sheffield CCG,30/11/2019,C&M-GMS Prem Notional Rent,PRC DELEGATED CO-COMMISSIONING,MATHEWS PRACTICE,29951546," 8,660.42 "
Department of Health,NHS Sheffield CCG,30/11/2019,C&M-GMS Prem Rates,PRC DELEGATED CO-COMMISSIONING,MATHEWS PRACTICE,29951546," 2,148.00 "
Department of Health,NHS Sheffield CCG,30/11/2019,C&M-GMS Prof Fees Prescribing,PRC DELEGATED CO-COMMISSIONING,MATHEWS PRACTICE,29951546, 134.68 
Department of Health,NHS Sheffield CCG,30/11/2019,C&M-GMS QOF Aspiration,PRC DELEGATED CO-COMMISSIONING,MATHEWS PRACTICE,29951546," 7,156.84 "
Department of Health,NHS Sheffield CCG,30/11/2019,C&M-GMS Cost of Drugs -Prescribing,LOCAL ENHANCED SERVICES,MILL ROAD SURGERY SHEFFIELD,29951549," 6,360.37 "
Department of Health,NHS Sheffield CCG,30/11/2019,C&M-GMS Global Sum,PRC DELEGATED CO-COMMISSIONING,MILL ROAD SURGERY SHEFFIELD,29951549," 41,087.07 "
Department of Health,NHS Sheffield CCG,30/11/2019,C&M-GMS MPIG Correction Factor,PRC DELEGATED CO-COMMISSIONING,MILL ROAD SURGERY SHEFFIELD,29951549, 61.02 
Department of Health,NHS Sheffield CCG,30/11/2019,C&M-GMS PCN DES Participation,PRC DELEGATED CO-COMMISSIONING,MILL ROAD SURGERY SHEFFIELD,29951549, 842.44 
Department of Health,NHS Sheffield CCG,30/11/2019,C&M-GMS PCO Locum Adop/Pat/Mat,PRC DELEGATED CO-COMMISSIONING,MILL ROAD SURGERY SHEFFIELD,29951549," 5,459.38 "
Department of Health,NHS Sheffield CCG,30/11/2019,C&M-GMS PCO Other,PRC DELEGATED CO-COMMISSIONING,MILL ROAD SURGERY SHEFFIELD,29951549, 352.70 
Department of Health,NHS Sheffield CCG,30/11/2019,C&M-GMS Prem Notional Rent,PRC DELEGATED CO-COMMISSIONING,MILL ROAD SURGERY SHEFFIELD,29951549," 4,593.33 "
Department of Health,NHS Sheffield CCG,30/11/2019,C&M-GMS Prem Rates,PRC DELEGATED CO-COMMISSIONING,MILL ROAD SURGERY SHEFFIELD,29951549," 1,056.00 "
Department of Health,NHS Sheffield CCG,30/11/2019,C&M-GMS Prof Fees Prescribing,PRC DELEGATED CO-COMMISSIONING,MILL ROAD SURGERY SHEFFIELD,29951549," 1,233.78 "
Department of Health,NHS Sheffield CCG,30/11/2019,C&M-GMS QOF Aspiration,PRC DELEGATED CO-COMMISSIONING,MILL ROAD SURGERY SHEFFIELD,29951549," 5,088.50 "
Department of Health,NHS Sheffield CCG,30/11/2019,C&M-GMS Cost of Drugs -Prescribing,LOCAL ENHANCED SERVICES,NORFOLK PARK HEALTH CENTRE,29951554," 3,616.30 "
Department of Health,NHS Sheffield CCG,30/11/2019,C&M-GMS Global Sum,PRC DELEGATED CO-COMMISSIONING,NORFOLK PARK HEALTH CENTRE,29951554," 39,461.93 "
Department of Health,NHS Sheffield CCG,30/11/2019,C&M-GMS MPIG Correction Factor,PRC DELEGATED CO-COMMISSIONING,NORFOLK PARK HEALTH CENTRE,29951554, 462.30 
Department of Health,NHS Sheffield CCG,30/11/2019,C&M-GMS PCN DES Participation,PRC DELEGATED CO-COMMISSIONING,NORFOLK PARK HEALTH CENTRE,29951554, 763.41 
Department of Health,NHS Sheffield CCG,30/11/2019,C&M-GMS Prem Healthcentre Rent,PRC DELEGATED CO-COMMISSIONING,NORFOLK PARK HEALTH CENTRE,29951554," 24,820.01 "
Department of Health,NHS Sheffield CCG,30/11/2019,C&M-GMS Prof Fees Prescribing,PRC DELEGATED CO-COMMISSIONING,NORFOLK PARK HEALTH CENTRE,29951554, 772.01 
Department of Health,NHS Sheffield CCG,30/11/2019,C&M-GMS QOF Aspiration,PRC DELEGATED CO-COMMISSIONING,NORFOLK PARK HEALTH CENTRE,29951554," 3,941.29 "
Department of Health,NHS Sheffield CCG,30/11/2019,C&M-GMS Cost of Drugs -Prescribing,LOCAL ENHANCED SERVICES,NORWOOD MEDICAL CENTRE SHEFFIELD,29951557, 245.57 
Department of Health,NHS Sheffield CCG,30/11/2019,C&M-GMS Global Sum,PRC DELEGATED CO-COMMISSIONING,NORWOOD MEDICAL CENTRE SHEFFIELD,29951557," 65,606.22 "
Department of Health,NHS Sheffield CCG,30/11/2019,C&M-GMS PCN DES Participation,PRC DELEGATED CO-COMMISSIONING,NORWOOD MEDICAL CENTRE SHEFFIELD,29951557," 1,337.61 "
Department of Health,NHS Sheffield CCG,30/11/2019,C&M-GMS PCO Locum Adop/Pat/Mat,PRC DELEGATED CO-COMMISSIONING,NORWOOD MEDICAL CENTRE SHEFFIELD,29951557," 3,509.62 "
Department of Health,NHS Sheffield CCG,30/11/2019,C&M-GMS PCO Other,PRC DELEGATED CO-COMMISSIONING,NORWOOD MEDICAL CENTRE SHEFFIELD,29951557, 510.00 
Department of Health,NHS Sheffield CCG,30/11/2019,C&M-GMS Prem Notional Rent,PRC DELEGATED CO-COMMISSIONING,NORWOOD MEDICAL CENTRE SHEFFIELD,29951557," 5,187.50 "
Department of Health,NHS Sheffield CCG,30/11/2019,C&M-GMS Prem Rates,PRC DELEGATED CO-COMMISSIONING,NORWOOD MEDICAL CENTRE SHEFFIELD,29951557," 1,279.00 "
Department of Health,NHS Sheffield CCG,30/11/2019,C&M-GMS Prof Fees Prescribing,PRC DELEGATED CO-COMMISSIONING,NORWOOD MEDICAL CENTRE SHEFFIELD,29951557, 108.24 
Department of Health,NHS Sheffield CCG,30/11/2019,C&M-GMS QOF Aspiration,PRC DELEGATED CO-COMMISSIONING,NORWOOD MEDICAL CENTRE SHEFFIELD,29951557," 8,171.17 "
Department of Health,NHS Sheffield CCG,30/11/2019,C&M-GMS Cost of Drugs -Dispensing,LOCAL ENHANCED SERVICES,OUGHTIBRIDGE SURGERY,29951559,"-17,707.69 "
Department of Health,NHS Sheffield CCG,30/11/2019,C&M-GMS GP Statutory Levy,PRC DELEGATED CO-COMMISSIONING,OUGHTIBRIDGE SURGERY,29951559,-203.35 
Department of Health,NHS Sheffield CCG,30/11/2019,C&M-GMS PrscChrgsCll&RmttdbyGPCntra,PRC DELEGATED CO-COMMISSIONING,OUGHTIBRIDGE SURGERY,29951559,-711.00 
Department of Health,NHS Sheffield CCG,30/11/2019,C&M-GMS Cost of Drugs -Dispensing,LOCAL ENHANCED SERVICES,OUGHTIBRIDGE SURGERY,29951560," 35,168.04 "
Department of Health,NHS Sheffield CCG,30/11/2019,C&M-GMS Global Sum,PRC DELEGATED CO-COMMISSIONING,OUGHTIBRIDGE SURGERY,29951560," 43,567.76 "
Department of Health,NHS Sheffield CCG,30/11/2019,C&M-GMS PCN DES Participation,PRC DELEGATED CO-COMMISSIONING,OUGHTIBRIDGE SURGERY,29951560, 889.02 
Department of Health,NHS Sheffield CCG,30/11/2019,C&M-GMS Prem Notional Rent,PRC DELEGATED CO-COMMISSIONING,OUGHTIBRIDGE SURGERY,29951560," 3,957.33 "
Department of Health,NHS Sheffield CCG,30/11/2019,C&M-GMS Prem Rates,PRC DELEGATED CO-COMMISSIONING,OUGHTIBRIDGE SURGERY,29951560, 895.00 
Department of Health,NHS Sheffield CCG,30/11/2019,C&M-GMS Prof Fees Dispensing,PRC DELEGATED CO-COMMISSIONING,OUGHTIBRIDGE SURGERY,29951560," 5,315.24 "
Department of Health,NHS Sheffield CCG,30/11/2019,C&M-GMS PrscrptnChrgsColl&RmttdbyGP,LOCAL ENHANCED SERVICES,OUGHTIBRIDGE SURGERY,29951560, 711.00 
Department of Health,NHS Sheffield CCG,30/11/2019,C&M-GMS QOF Aspiration,PRC DELEGATED CO-COMMISSIONING,OUGHTIBRIDGE SURGERY,29951560," 4,261.60 "
Department of Health,NHS Sheffield CCG,30/11/2019,C&M-GMS Cost of Drugs -Prescribing,LOCAL ENHANCED SERVICES,SHARROW LANE MEDICAL CENTRE,29951564, 310.60 
Department of Health,NHS Sheffield CCG,30/11/2019,C&M-GMS Global Sum,PRC DELEGATED CO-COMMISSIONING,SHARROW LANE MEDICAL CENTRE,29951564," 23,795.26 "
Department of Health,NHS Sheffield CCG,30/11/2019,C&M-GMS MPIG Correction Factor,PRC DELEGATED CO-COMMISSIONING,SHARROW LANE MEDICAL CENTRE,29951564, 980.16 
Department of Health,NHS Sheffield CCG,30/11/2019,C&M-GMS PCN DES Participation,PRC DELEGATED CO-COMMISSIONING,SHARROW LANE MEDICAL CENTRE,29951564, 481.39 
Department of Health,NHS Sheffield CCG,30/11/2019,C&M-GMS PCO Other,PRC DELEGATED CO-COMMISSIONING,SHARROW LANE MEDICAL CENTRE,29951564, 274.00 
Department of Health,NHS Sheffield CCG,30/11/2019,C&M-GMS Prem Notional Rent,PRC DELEGATED CO-COMMISSIONING,SHARROW LANE MEDICAL CENTRE,29951564," 2,741.67 "
Department of Health,NHS Sheffield CCG,30/11/2019,C&M-GMS Prem Rates,PRC DELEGATED CO-COMMISSIONING,SHARROW LANE MEDICAL CENTRE,29951564, 581.00 
Department of Health,NHS Sheffield CCG,30/11/2019,C&M-GMS Prof Fees Prescribing,PRC DELEGATED CO-COMMISSIONING,SHARROW LANE MEDICAL CENTRE,29951564, 50.51 
Department of Health,NHS Sheffield CCG,30/11/2019,C&M-GMS QOF Aspiration,PRC DELEGATED CO-COMMISSIONING,SHARROW LANE MEDICAL CENTRE,29951564," 2,666.85 "
Department of Health,NHS Sheffield CCG,30/11/2019,C&M-GMS Cost of Drugs -Prescribing,LOCAL ENHANCED SERVICES,SHIREGREEN MEDICAL CENTRE,29951571," 1,207.40 "
Department of Health,NHS Sheffield CCG,30/11/2019,C&M-GMS DES Learn Dsblty Hlth Chk,PRC DELEGATED CO-COMMISSIONING,SHIREGREEN MEDICAL CENTRE,29951571," 1,856.00 "
Department of Health,NHS Sheffield CCG,30/11/2019,C&M-GMS Global Sum,PRC DELEGATED CO-COMMISSIONING,SHIREGREEN MEDICAL CENTRE,29951571," 58,976.70 "
Department of Health,NHS Sheffield CCG,30/11/2019,C&M-GMS MPIG Correction Factor,PRC DELEGATED CO-COMMISSIONING,SHIREGREEN MEDICAL CENTRE,29951571, 226.84 
Department of Health,NHS Sheffield CCG,30/11/2019,C&M-GMS PCN DES Participation,PRC DELEGATED CO-COMMISSIONING,SHIREGREEN MEDICAL CENTRE,29951571," 1,217.78 "
Department of Health,NHS Sheffield CCG,30/11/2019,C&M-GMS Prem Cost Rent,PRC DELEGATED CO-COMMISSIONING,SHIREGREEN MEDICAL CENTRE,29951571," 1,792.33 "
Department of Health,NHS Sheffield CCG,30/11/2019,C&M-GMS Prem Notional Rent,PRC DELEGATED CO-COMMISSIONING,SHIREGREEN MEDICAL CENTRE,29951571," 5,375.00 "
Department of Health,NHS Sheffield CCG,30/11/2019,C&M-GMS Prem Rates,PRC DELEGATED CO-COMMISSIONING,SHIREGREEN MEDICAL CENTRE,29951571," 1,922.00 "
Department of Health,NHS Sheffield CCG,30/11/2019,C&M-GMS Prof Fees Prescribing,PRC DELEGATED CO-COMMISSIONING,SHIREGREEN MEDICAL CENTRE,29951571, 98.62 
Department of Health,NHS Sheffield CCG,30/11/2019,C&M-GMS QOF Aspiration,PRC DELEGATED CO-COMMISSIONING,SHIREGREEN MEDICAL CENTRE,29951571," 6,849.89 "
Department of Health,NHS Sheffield CCG,30/11/2019,C&M-GMS Cost of Drugs -Prescribing,LOCAL ENHANCED SERVICES,STONECROFT MEDICAL CENTRE,29951573," 1,011.82 "
Department of Health,NHS Sheffield CCG,30/11/2019,C&M-GMS Global Sum,PRC DELEGATED CO-COMMISSIONING,STONECROFT MEDICAL CENTRE,29951573," 32,495.15 "
Department of Health,NHS Sheffield CCG,30/11/2019,C&M-GMS MPIG Correction Factor,PRC DELEGATED CO-COMMISSIONING,STONECROFT MEDICAL CENTRE,29951573, 309.13 
Department of Health,NHS Sheffield CCG,30/11/2019,C&M-GMS PCN DES Participation,PRC DELEGATED CO-COMMISSIONING,STONECROFT MEDICAL CENTRE,29951573, 657.55 
Department of Health,NHS Sheffield CCG,30/11/2019,C&M-GMS PCO Other,PRC DELEGATED CO-COMMISSIONING,STONECROFT MEDICAL CENTRE,29951573, 284.70 
Department of Health,NHS Sheffield CCG,30/11/2019,C&M-GMS Prem Notional Rent,PRC DELEGATED CO-COMMISSIONING,STONECROFT MEDICAL CENTRE,29951573," 2,808.33 "
Department of Health,NHS Sheffield CCG,30/11/2019,C&M-GMS Prem Rates,PRC DELEGATED CO-COMMISSIONING,STONECROFT MEDICAL CENTRE,29951573," 1,215.00 "
Department of Health,NHS Sheffield CCG,30/11/2019,C&M-GMS Prof Fees Prescribing,PRC DELEGATED CO-COMMISSIONING,STONECROFT MEDICAL CENTRE,29951573, 269.36 
Department of Health,NHS Sheffield CCG,30/11/2019,C&M-GMS QOF Aspiration,PRC DELEGATED CO-COMMISSIONING,STONECROFT MEDICAL CENTRE,29951573," 4,228.40 "
Department of Health,NHS Sheffield CCG,30/11/2019,C&M-GMS Global Sum,PRC DELEGATED CO-COMMISSIONING,STANNINGTON MEDICAL CENTRE,29951575," 26,202.20 "
Department of Health,NHS Sheffield CCG,30/11/2019,C&M-GMS PCO Other,PRC DELEGATED CO-COMMISSIONING,STANNINGTON MEDICAL CENTRE,29951575, 237.70 
Department of Health,NHS Sheffield CCG,30/11/2019,C&M-GMS Prem Notional Rent,PRC DELEGATED CO-COMMISSIONING,STANNINGTON MEDICAL CENTRE,29951575," 2,575.00 "
Department of Health,NHS Sheffield CCG,30/11/2019,C&M-GMS Prem Rates,PRC DELEGATED CO-COMMISSIONING,STANNINGTON MEDICAL CENTRE,29951575, 333.20 
Department of Health,NHS Sheffield CCG,30/11/2019,C&M-GMS Prem Water Rates,PRC DELEGATED CO-COMMISSIONING,STANNINGTON MEDICAL CENTRE,29951575, 150.12 
Department of Health,NHS Sheffield CCG,30/11/2019,C&M-GMS QOF Aspiration,PRC DELEGATED CO-COMMISSIONING,STANNINGTON MEDICAL CENTRE,29951575," 2,881.70 "
Department of Health,NHS Sheffield CCG,30/11/2019,C&M-GMS Cost of Drugs -Prescribing,LOCAL ENHANCED SERVICES,TOTLEY RISE MEDICAL CENTRE,29951577, 332.71 
Department of Health,NHS Sheffield CCG,30/11/2019,C&M-GMS Global Sum,PRC DELEGATED CO-COMMISSIONING,TOTLEY RISE MEDICAL CENTRE,29951577," 25,571.83 "
Department of Health,NHS Sheffield CCG,30/11/2019,C&M-GMS MPIG Correction Factor,PRC DELEGATED CO-COMMISSIONING,TOTLEY RISE MEDICAL CENTRE,29951577, 51.57 
Department of Health,NHS Sheffield CCG,30/11/2019,C&M-GMS PCN DES Participation,PRC DELEGATED CO-COMMISSIONING,TOTLEY RISE MEDICAL CENTRE,29951577, 504.35 
Department of Health,NHS Sheffield CCG,30/11/2019,C&M-GMS Prem Notional Rent,PRC DELEGATED CO-COMMISSIONING,TOTLEY RISE MEDICAL CENTRE,29951577," 1,604.17 "
Department of Health,NHS Sheffield CCG,30/11/2019,C&M-GMS Prof Fees Prescribing,PRC DELEGATED CO-COMMISSIONING,TOTLEY RISE MEDICAL CENTRE,29951577, 62.53 
Department of Health,NHS Sheffield CCG,30/11/2019,C&M-GMS QOF Aspiration,PRC DELEGATED CO-COMMISSIONING,TOTLEY RISE MEDICAL CENTRE,29951577," 2,304.18 "
Department of Health,NHS Sheffield CCG,30/11/2019,C&M-GMS Cost of Drugs -Prescribing,LOCAL ENHANCED SERVICES,UPPERTHORPE MEDICAL CENTRE,29951580," 7,625.86 "
Department of Health,NHS Sheffield CCG,30/11/2019,C&M-GMS Global Sum,PRC DELEGATED CO-COMMISSIONING,UPPERTHORPE MEDICAL CENTRE,29951580," 84,509.61 "
Department of Health,NHS Sheffield CCG,30/11/2019,C&M-GMS MPIG Correction Factor,PRC DELEGATED CO-COMMISSIONING,UPPERTHORPE MEDICAL CENTRE,29951580, 662.87 
Department of Health,NHS Sheffield CCG,30/11/2019,C&M-GMS PCN DES Participation,PRC DELEGATED CO-COMMISSIONING,UPPERTHORPE MEDICAL CENTRE,29951580," 1,681.95 "
Department of Health,NHS Sheffield CCG,30/11/2019,C&M-GMS PCO Locum Adop/Pat/Mat,PRC DELEGATED CO-COMMISSIONING,UPPERTHORPE MEDICAL CENTRE,29951580," 6,120.50 "
Department of Health,NHS Sheffield CCG,30/11/2019,C&M-GMS Prem Notional Rent,PRC DELEGATED CO-COMMISSIONING,UPPERTHORPE MEDICAL CENTRE,29951580," 2,547.83 "
Department of Health,NHS Sheffield CCG,30/11/2019,C&M-GMS Prem Rates,PRC DELEGATED CO-COMMISSIONING,UPPERTHORPE MEDICAL CENTRE,29951580," 2,318.00 "
Department of Health,NHS Sheffield CCG,30/11/2019,C&M-GMS Prof Fees Prescribing,PRC DELEGATED CO-COMMISSIONING,UPPERTHORPE MEDICAL CENTRE,29951580," 1,500.75 "
Department of Health,NHS Sheffield CCG,30/11/2019,C&M-GMS QOF Aspiration,PRC DELEGATED CO-COMMISSIONING,UPPERTHORPE MEDICAL CENTRE,29951580," 9,072.83 "
Department of Health,NHS Sheffield CCG,30/11/2019,C&M-GMS Cost of Drugs -Prescribing,LOCAL ENHANCED SERVICES,WHITE HOUSE SURGERY SHEFFIELD,29951583," 1,508.24 "
Department of Health,NHS Sheffield CCG,30/11/2019,C&M-GMS DES Learn Dsblty Hlth Chk,PRC DELEGATED CO-COMMISSIONING,WHITE HOUSE SURGERY SHEFFIELD,29951583," 1,508.00 "
Department of Health,NHS Sheffield CCG,30/11/2019,C&M-GMS Global Sum,PRC DELEGATED CO-COMMISSIONING,WHITE HOUSE SURGERY SHEFFIELD,29951583," 52,092.41 "
Department of Health,NHS Sheffield CCG,30/11/2019,C&M-GMS MPIG Correction Factor,PRC DELEGATED CO-COMMISSIONING,WHITE HOUSE SURGERY SHEFFIELD,29951583, 695.65 
Department of Health,NHS Sheffield CCG,30/11/2019,C&M-GMS PCN DES Participation,PRC DELEGATED CO-COMMISSIONING,WHITE HOUSE SURGERY SHEFFIELD,29951583," 1,038.45 "
Department of Health,NHS Sheffield CCG,30/11/2019,C&M-GMS Prem Notional Rent,PRC DELEGATED CO-COMMISSIONING,WHITE HOUSE SURGERY SHEFFIELD,29951583," 9,412.50 "
Department of Health,NHS Sheffield CCG,30/11/2019,C&M-GMS Prem Rates,PRC DELEGATED CO-COMMISSIONING,WHITE HOUSE SURGERY SHEFFIELD,29951583," 2,443.00 "
Department of Health,NHS Sheffield CCG,30/11/2019,C&M-GMS Prof Fees Prescribing,PRC DELEGATED CO-COMMISSIONING,WHITE HOUSE SURGERY SHEFFIELD,29951583, 343.93 
Department of Health,NHS Sheffield CCG,30/11/2019,C&M-GMS QOF Aspiration,PRC DELEGATED CO-COMMISSIONING,WHITE HOUSE SURGERY SHEFFIELD,29951583," 6,233.52 "
Department of Health,NHS Sheffield CCG,30/11/2019,C&M-GMS GP Statutory Levy,PRC DELEGATED CO-COMMISSIONING,WALKLEY HOUSE MEDICAL CENTRE,29951584,-422.52 
Department of Health,NHS Sheffield CCG,30/11/2019,C&M-GMS Cost of Drugs -Prescribing,LOCAL ENHANCED SERVICES,WALKLEY HOUSE MEDICAL CENTRE,29951585," 6,041.79 "
Department of Health,NHS Sheffield CCG,30/11/2019,C&M-GMS Global Sum,PRC DELEGATED CO-COMMISSIONING,WALKLEY HOUSE MEDICAL CENTRE,29951585," 85,699.63 "
Department of Health,NHS Sheffield CCG,30/11/2019,C&M-GMS PCN DES Participation,PRC DELEGATED CO-COMMISSIONING,WALKLEY HOUSE MEDICAL CENTRE,29951585," 1,749.49 "
Department of Health,NHS Sheffield CCG,30/11/2019,C&M-GMS Prem Notional Rent,PRC DELEGATED CO-COMMISSIONING,WALKLEY HOUSE MEDICAL CENTRE,29951585," 5,635.50 "
Department of Health,NHS Sheffield CCG,30/11/2019,C&M-GMS Prem Rates,PRC DELEGATED CO-COMMISSIONING,WALKLEY HOUSE MEDICAL CENTRE,29951585," 1,845.00 "
Department of Health,NHS Sheffield CCG,30/11/2019,C&M-GMS Prof Fees Prescribing,PRC DELEGATED CO-COMMISSIONING,WALKLEY HOUSE MEDICAL CENTRE,29951585," 1,274.65 "
Department of Health,NHS Sheffield CCG,30/11/2019,C&M-GMS QOF Aspiration,PRC DELEGATED CO-COMMISSIONING,WALKLEY HOUSE MEDICAL CENTRE,29951585," 8,602.90 "
Department of Health,NHS Sheffield CCG,30/11/2019,Hcare Srv Rec Fdtn Trust-Contract Baseline,ACUTE COMMISSIONING,CHESTERFIELD ROYAL HOSPITAL NHS FOUNDATION TRUST,29956964," 95,260.00 "
Department of Health,NHS Sheffield CCG,30/11/2019,Hcare Srv Rec Fdtn Trust-Contract Baseline,ACUTE COMMISSIONING,CHESTERFIELD ROYAL HOSPITAL NHS FOUNDATION TRUST,29956968," 78,626.00 "
Department of Health,NHS Sheffield CCG,30/11/2019,Cont Care- Children,CHC CHILDREN,SHEFFIELD CITY COUNCIL,29958530," 44,166.64 "
Department of Health,NHS Sheffield CCG,30/11/2019,Clinical&Medical-Independent Sector,Mental Health Services - S117 Mental Health,CYGNET LEARNING DISABILITIES MIDLANDS LTD,29958534," 33,722.87 "
Department of Health,NHS Sheffield CCG,30/11/2019,Hcare Srv Rec Fdtn Trust-Contract Baseline,ACUTE COMMISSIONING,SHEFFIELD TEACHING HOSPITALS NHS FOUNDATION TRUST,29958597," 30,408,062.00 "
Department of Health,NHS Sheffield CCG,30/11/2019,Hcare Srv Rec Fdtn Trust-Contract Baseline,ACUTE COMMISSIONING,SHEFFIELD TEACHING HOSPITALS NHS FOUNDATION TRUST,29958598," 192,715.00 "
Department of Health,NHS Sheffield CCG,30/11/2019,Hcare Srv Rec Fdtn Trust-Contract Baseline,ACUTE COMMISSIONING,SHEFFIELD TEACHING HOSPITALS NHS FOUNDATION TRUST,29958600," 1,367,220.00 "
Department of Health,NHS Sheffield CCG,30/11/2019,Hcare Srv Rec Fdtn Trust-Contract Baseline,ACUTE COMMISSIONING,SHEFFIELD TEACHING HOSPITALS NHS FOUNDATION TRUST,29958602," 3,898,718.00 "
Department of Health,NHS Sheffield CCG,30/11/2019,C&M-GMS Cost of Drugs -Prescribing,LOCAL ENHANCED SERVICES,ECCLESFIELD GROUP PRACTICE,29969052," 12,805.63 "
Department of Health,NHS Sheffield CCG,30/11/2019,C&M-GMS DES Extended Hours Access,PRC DELEGATED CO-COMMISSIONING,ECCLESFIELD GROUP PRACTICE,29969052," 5,190.33 "
Department of Health,NHS Sheffield CCG,30/11/2019,C&M-GMS Global Sum,PRC DELEGATED CO-COMMISSIONING,ECCLESFIELD GROUP PRACTICE,29969052," 70,117.10 "
Department of Health,NHS Sheffield CCG,30/11/2019,C&M-GMS PCN DES Clinical Director,PRC DELEGATED CO-COMMISSIONING,ECCLESFIELD GROUP PRACTICE,29969052," 2,427.51 "
Department of Health,NHS Sheffield CCG,30/11/2019,C&M-GMS PCN DES PCN support,LOCAL ENHANCED SERVICES,ECCLESFIELD GROUP PRACTICE,29969052," 5,313.13 "
Department of Health,NHS Sheffield CCG,30/11/2019,C&M-GMS PCN DES Participation,PRC DELEGATED CO-COMMISSIONING,ECCLESFIELD GROUP PRACTICE,29969052," 1,400.97 "
Department of Health,NHS Sheffield CCG,30/11/2019,C&M-GMS PCO Other,PRC DELEGATED CO-COMMISSIONING,ECCLESFIELD GROUP PRACTICE,29969052, 525.30 
Department of Health,NHS Sheffield CCG,30/11/2019,C&M-GMS Prem Notional Rent,PRC DELEGATED CO-COMMISSIONING,ECCLESFIELD GROUP PRACTICE,29969052," 6,805.42 "
Department of Health,NHS Sheffield CCG,30/11/2019,C&M-GMS Prem Rates,PRC DELEGATED CO-COMMISSIONING,ECCLESFIELD GROUP PRACTICE,29969052," 1,527.00 "
Department of Health,NHS Sheffield CCG,30/11/2019,C&M-GMS Prem Water Rates,PRC DELEGATED CO-COMMISSIONING,ECCLESFIELD GROUP PRACTICE,29969052, 424.35 
Department of Health,NHS Sheffield CCG,30/11/2019,C&M-GMS Prof Fees Prescribing,PRC DELEGATED CO-COMMISSIONING,ECCLESFIELD GROUP PRACTICE,29969052," 2,902.84 "
Department of Health,NHS Sheffield CCG,30/11/2019,C&M-GMS QOF Aspiration,PRC DELEGATED CO-COMMISSIONING,ECCLESFIELD GROUP PRACTICE,29969052," 9,179.49 "
Department of Health,NHS Sheffield CCG,30/11/2019,C&M-GMS Cost of Drugs -Prescribing,LOCAL ENHANCED SERVICES,TRAMWAYS MEDICAL CENTRE,29969055," 11,329.70 "
Department of Health,NHS Sheffield CCG,30/11/2019,C&M-GMS Global Sum,PRC DELEGATED CO-COMMISSIONING,TRAMWAYS MEDICAL CENTRE,29969055," 61,606.41 "
Department of Health,NHS Sheffield CCG,30/11/2019,C&M-GMS PCN DES Participation,PRC DELEGATED CO-COMMISSIONING,TRAMWAYS MEDICAL CENTRE,29969055," 1,263.94 "
Department of Health,NHS Sheffield CCG,30/11/2019,C&M-GMS PCO Other,PRC DELEGATED CO-COMMISSIONING,TRAMWAYS MEDICAL CENTRE,29969055, 534.60 
Department of Health,NHS Sheffield CCG,30/11/2019,C&M-GMS Prem Cost Rent,PRC DELEGATED CO-COMMISSIONING,TRAMWAYS MEDICAL CENTRE,29969055," 4,012.75 "
Department of Health,NHS Sheffield CCG,30/11/2019,C&M-GMS Prem Rates,PRC DELEGATED CO-COMMISSIONING,TRAMWAYS MEDICAL CENTRE,29969055," 1,098.00 "
Department of Health,NHS Sheffield CCG,30/11/2019,C&M-GMS Prem Water Rates,PRC DELEGATED CO-COMMISSIONING,TRAMWAYS MEDICAL CENTRE,29969055, 229.96 
Department of Health,NHS Sheffield CCG,30/11/2019,C&M-GMS Prof Fees Prescribing,PRC DELEGATED CO-COMMISSIONING,TRAMWAYS MEDICAL CENTRE,29969055," 2,252.49 "
Department of Health,NHS Sheffield CCG,30/11/2019,C&M-GMS QOF Aspiration,PRC DELEGATED CO-COMMISSIONING,TRAMWAYS MEDICAL CENTRE,29969055," 5,645.42 "
Department of Health,NHS Sheffield CCG,30/11/2019,C&M-GMS GP Statutory Levy,PRC DELEGATED CO-COMMISSIONING,WHITE HOUSE SURGERY SHEFFIELD,29969056,-231.81 
Department of Health,NHS Sheffield CCG,30/11/2019,Hcare Srv Rec Fdtn Trust-Non Contract,NCAS/OATS,YORK TEACHING HOSPITAL NHS FOUNDATION TRUST,29977549," 31,723.40 "
Department of Health,NHS Sheffield CCG,30/11/2019,Hcare Srv Rec Fdtn Trust-Contract Baseline,ACUTE COMMISSIONING,CHESTERFIELD ROYAL HOSPITAL NHS FOUNDATION TRUST,29991959,"-42,904.00 "
Department of Health,NHS Sheffield CCG,30/11/2019,Clinical&Medical-Commercial Sector,PATIENT TRANSPORT,PREMIER CARE DIRECT LTD,30017629," 112,480.55 "
Department of Health,NHS Sheffield CCG,30/11/2019,C&M-GMS IT Comm Servs -GP Practices,PRIMARY CARE IT,KIER BUSINESS SERVICES LTD,30017649," 71,245.90 "
Department of Health,NHS Sheffield CCG,30/11/2019,Hcare Srv Rec Fdtn Trust-Contract Baseline,MENTAL HEALTH CONTRACTS,SHEFFIELD HEALTH & SOCIAL CARE NHS FOUNDATION TRUST,30017731," 6,833,545.75 "
